Workbook

Sheet Roller Coaster
C21: 0

Sheet Calculations
A1: eye-screen | B1: 20 | E1: =SIN(55) -> -0.9997551734
A2: screen-O | B2: -10 | E2: =SIN(B1) -> 0.9129452507 | U2: x0 | V2: y0 | W2: z0
T3: Current | U3: =OFFSET(U45,B1666,0) -> 0 | V3: =OFFSET(V45,B1666,0) -> 0 | W3: =OFFSET(W45,B1666,0) -> 7
E4: sin(Y) | F4: =SIN(ASIN(C1704)+RADIANS(B6)) -> 0 | Y4: Trunc Speed | Z4: =TRUNC(OFFSET(AG45,B1666,0),0) -> 0
A5: Rider Offset | E5: cos(Y) | F5: =COS(ACOS(E1704)+RADIANS(B6)) -> 1 | Y5: Slow down-scale | Z5: 8
A6: Yaw | B6: 0 | E6: sin(P) | F6: =SIN(ASIN(G1704)+RADIANS(B7)) -> 0 | AB6: Name
A7: Pitch | B7: 0 | E7: cos(P) | F7: =COS(ACOS(I1704)+RADIANS(B7)) -> 1 | U7: =OFFSET(AA45,B1666,0) -> 0 | V7: =OFFSET(AB45,B1666,0) -> 0.9250764109 | W7: =OFFSET(AC45,B1666,0) -> 0.03250325061 | AB7: 13.5 | AC7: =IF(Calculations!C21=0,5,-99) -> 5
A8: Roll | B8: 0 | E8: sin(R) | F8: =SIN(ASIN(K1704)+RADIANS(B8)) -> 0 | T8: Transverse | U8: =OFFSET(AD$45,$B1666,0) -> -10 | V8: =OFFSET(AE$45,$B1666,0) -> 0 | W8: =OFFSET(AF$45,$B1666,0) -> 0
E9: cos(R) | F9: =COS(ACOS(M1704)+RADIANS(B8)) -> 1 | AB9: 13.5 | AC9: =IF(Calculations!C$21=0,5,-99) -> 5
A10: x0 | B10: 0 | AB10: =AB9-1 -> 12.5 | AC10: =IF(OR(Calculations!C$21=2,Calculations!C$21=1980),5.5,-99) -> -99
A11: y0 | B11: 0 | AB11: =AB10-1 -> 11.5 | AC11: =IF(OR(Calculations!C$21=4,Calculations!C$21=1979),6,-99) -> -99
A12: z0 | B12: 0 | AB12: 10.5 | AC12: =IF(OR(Calculations!C$21=6,Calculations!C$21=1978),6.5,-99) -> -99
AB13: 9.5 | AC13: =IF(OR(Calculations!C$21=8,Calculations!C$21=1977),7,-99) -> -99
AB14: 8.5 | AC14: =IF(OR(Calculations!C$21=10,Calculations!C$21=1976),7.5,-99) -> -99
A15: Speed | B15: =U16 -> 0 | U15: Speed Variable | AB15: 7.5 | AC15: =IF(OR(Calculations!C$21=12,Calculations!C$21=1975),8,-99) -> -99
U16: =OFFSET(AG45,Calculations!C21,0) -> 0 | AB16: 6.5 | AC16: =IF(OR(Calculations!C$21=14,Calculations!C$21=1974),8.5,-99) -> -99
AB17: 5.5 | AC17: =IF(OR(Calculations!C$21=16,Calculations!C$21=1973),9,-99) -> -99
AB18: 4.5 | AC18: =IF(OR(Calculations!C$21=18,Calculations!C$21=1972),9.5,-99) -> -99 | BU18: 0
AB19: 3.5 | AC19: =IF(OR(Calculations!C$21=20,Calculations!C$21=1971),10,-99) -> -99
AB20: 2.5 | AC20: =IF(OR(Calculations!C$21=22,Calculations!C$21=1970),10.5,-99) -> -99
B21: Index | C21: 0 | AB21: 1.5 | AC21: =IF(OR(Calculations!C$21=24,Calculations!C$21=1969),11,-99) -> -99
AB22: 0.5 | AC22: =IF(OR(Calculations!C$21=26,Calculations!C$21=1968),11.5,-99) -> -99
AB23: 0 | AC23: =IF(Calculations!C$21=28,12,-99) -> -99
A24: Delay | B24: 0 | C24: ms
B26: 10.67578125 | C26: =IF(mySeconds="","","seconds") -> seconds
A38: 300
A39: -200
V42: Rider | Y42: Transverse | AS42: X-twist+dx | AT42: Y-twist+dx | AU42: Z-twist+dx
B43: X-x0 | C43: Y-y0 | D43: Z-z0 | E43: X-y | F43: Y-y | G43: Z-y | H43: X-p | I43: Y-p | J43: Z-p | K43: X-r | L43: Y-r | M43: Z-r | N43: u | O43: v | U43: x | V43: y | W43: z | X43: delta-x | Y43: delta-y | Z43: delta-z | AB43: MovAverageRider | AE43: MovAverageTransverse | AG43: speed | AS43: -5 | AT43: 0 | AU43: 0
AS44: 0 | AT44: 0 | AU44: -3.054
A45: 8 | B45: =OFFSET(Calculations!AS$43,$A45,0)-U$3-B$10 -> 0 | C45: =OFFSET(Calculations!AT$43,$A45,0)-V$3-B$11 -> 10.31922993 | D45: =OFFSET(Calculations!AU$43,$A45,0)-W$3-B$12 -> -10.03726987 | E45: =B45*F$5+C45*F$4 -> 0 | F45: =C45*F$5-B45*F$4 -> 10.31922993 | G45: =D45 -> -10.03726987 | H45: 0 | I45: =F45*F$7+G45*F$6 -> 10.31922993 | J45: =G45*F$7-F45*F$6 -> -10.03726987 | K45: =H45*F$9+J45*F$8 -> 0 | L45: =I45 -> 10.31922993 | M45: =J45*F$9-H45*F$8 -> -10.03726987 | P45: =IF(MIN(L45:L51)+B$2+B$1>0,1,0) -> 1 | Q45: =IF(P45=1,K45*B$1/(B$1+B$2+L45),99999) -> 0 | R45: =M45*B$1/(B$1+B$2+L45) -> -9.879577036 | T45: 0 | U45: =OFFSET(Calculations!AS$46,$T45,0) -> 0 | V45: =OFFSET(Calculations!AT$46,$T45,0) -> 0 | W45: =OFFSET(Calculations!AU$46,$T45,0) -> 7 | X45: =OFFSET(Calculations!AS$43,$T45,0)-OFFSET(Calculations!AS$45,$T45,0) -> -10 | Y45: =OFFSET(Calculations!AT$43,$T45,0)-OFFSET(Calculations!AT$45,$T45,0) -> 0 | Z45: =OFFSET(Calculations!AU$43,$T45,0)-OFFSET(Calculations!AU$45,$T45,0) -> 0 | AA45: =(SUM(U46:U61)-SUM(U45:U60))/16 -> 0 | AB45: =(SUM(V46:V61)-SUM(V45:V60))/16 -> 0.9250764109 | AC45: =(SUM(W46:W61)-SUM(W45:W60))/16 -> 0.03250325061 | AD45: =SUM(X45:X60)/16 -> -10 | AE45: =SUM(Y45:Y60)/16 -> 0 | AF45: =SUM(Z45:Z60)/16 -> 0 | AG45: 0 | AS45: 5 | AT45: 0 | AU45: 0
A46: 1 | B46: =OFFSET(Calculations!AS$43,$A46,0)-U$3-B$10 -> 0 | C46: =OFFSET(Calculations!AT$43,$A46,0)-V$3-B$11 -> 0 | D46: =OFFSET(Calculations!AU$43,$A46,0)-W$3-B$12 -> -10.054 | E46: 0 | F46: 0 | G46: -10.054 | H46: 0 | I46: 0 | J46: -10.054 | K46: 0 | L46: 0 | M46: -10.054 | Q46: =IF(P45=1,K46*B$1/(B$1+B$2+L46),99999) -> 0 | R46: -20.108 | U46: =(9*U45+U55)/10 -> 0 | V46: 0.9268300757 | W46: 6.996165327 | X46: -10 | Y46: 0 | Z46: 0 | AA46: 0 | AB46: 0.9247841334 | AC46: 0.03855957125 | AD46: -10 | AE46: 0 | AF46: 0 | AG46: 1 | AS46: 0 | AT46: 0 | AU46: 7
A47: 0 | B47: =OFFSET(Calculations!AS$43,$A47,0)-U$3-B$10 -> -5 | C47: =OFFSET(Calculations!AT$43,$A47,0)-V$3-B$11 -> 0 | D47: =OFFSET(Calculations!AU$43,$A47,0)-W$3-B$12 -> -7 | E47: -5 | F47: 0 | G47: -7 | H47: -5 | I47: 0 | J47: -7 | K47: -5 | L47: 0 | M47: -7 | Q47: =IF(P45=1,K47*B$1/(B$1+B$2+L47),99999) -> -10 | R47: -14 | U47: =(8*U45+2*U55)/10 -> 0 | V47: 1.853660151 | W47: 6.992330654 | X47: -10 | Y47: 0 | Z47: 0 | AA47: 0 | AB47: 0.9244918559 | AC47: 0.04461589189 | AD47: -10 | AE47: 0 | AF47: 0 | AG47: =AG46 -> 1 | AL47: Axes | AS47: -7 | AT47: 0 | AU47: 0
A48: 7 | B48: =OFFSET(Calculations!AS$43,$A48,0)-U$3-B$10 -> -5 | C48: =OFFSET(Calculations!AT$43,$A48,0)-V$3-B$11 -> 10 | D48: =OFFSET(Calculations!AU$43,$A48,0)-W$3-B$12 -> -7 | E48: -5 | F48: 10 | G48: -7 | H48: -5 | I48: 10 | J48: -7 | K48: -5 | L48: 10 | M48: -7 | Q48: =IF(P45=1,K48*B$1/(B$1+B$2+L48),99999) -> -5 | R48: -7 | U48: =(7*U45+3*U55)/10 -> 0 | V48: 2.780490227 | W48: 6.98849598 | X48: -10 | Y48: 0 | Z48: 0 | AA48: 0 | AB48: 0.9241995784 | AC48: 0.05067221253 | AD48: -10 | AE48: 0 | AF48: 0 | AG48: 1 | AS48: 0 | AT48: 0 | AU48: 15
A49: 9 | B49: =OFFSET(Calculations!AS$43,$A49,0)-U$3-B$10 -> 5 | C49: =OFFSET(Calculations!AT$43,$A49,0)-V$3-B$11 -> 10 | D49: =OFFSET(Calculations!AU$43,$A49,0)-W$3-B$12 -> -7 | E49: 5 | F49: 10 | G49: -7 | H49: 5 | I49: 10 | J49: -7 | K49: 5 | L49: 10 | M49: -7 | Q49: =IF(P45=1,K49*B$1/(B$1+B$2+L49),99999) -> 5 | R49: -7 | U49: =(6*U45+4*U55)/10 -> 0 | V49: 3.707320303 | W49: 6.984661307 | X49: -10 | Y49: 0 | Z49: 0 | AA49: 0 | AB49: 0.9239073009 | AC49: 0.05672853317 | AD49: -10 | AE49: 0 | AF49: 0 | AG49: 1 | AS49: 7 | AT49: 0 | AU49: 0
A50: 2 | B50: =OFFSET(Calculations!AS$43,$A50,0)-U$3-B$10 -> 5 | C50: =OFFSET(Calculations!AT$43,$A50,0)-V$3-B$11 -> 0 | D50: =OFFSET(Calculations!AU$43,$A50,0)-W$3-B$12 -> -7 | E50: 5 | F50: 0 | G50: -7 | H50: 5 | I50: 0 | J50: -7 | K50: 5 | L50: 0 | M50: -7 | Q50: =IF(P45=1,K50*B$1/(B$1+B$2+L50),99999) -> 10 | R50: -14 | U50: =(5*U45+5*U55)/10 -> 0 | V50: 4.634150379 | W50: 6.980826634 | X50: -10 | Y50: 0 | Z50: 0 | AA50: 0 | AB50: 0.9184160546 | AC50: 0.06713633717 | AD50: -10 | AE50: 0 | AF50: 0 | AG50: 1 | AS50: -5 | AT50: 10 | AU50: 0
A51: 1 | B51: =OFFSET(Calculations!AS$43,$A51,0)-U$3-B$10 -> 0 | C51: =OFFSET(Calculations!AT$43,$A51,0)-V$3-B$11 -> 0 | D51: =OFFSET(Calculations!AU$43,$A51,0)-W$3-B$12 -> -10.054 | E51: 0 | F51: 0 | G51: -10.054 | H51: 0 | I51: 0 | J51: -10.054 | K51: 0 | L51: 0 | M51: -10.054 | Q51: =IF(P45=1,K51*B$1/(B$1+B$2+L51),99999) -> 0 | R51: -20.108 | U51: =(4*U45+6*U55)/10 -> 0 | V51: 5.560980454 | W51: 6.976991961 | X51: -10 | Y51: 0 | Z51: 0 | AA51: 0 | AB51: 0.9129248082 | AC51: 0.07754414116 | AD51: -10 | AE51: 0 | AF51: 0 | AG51: 1 | AS51: 0 | AT51: 10.31922993 | AU51: -3.037269868
U52: =(3*U45+7*U55)/10 -> 0 | V52: 6.48781053 | W52: 6.973157287 | X52: -10 | Y52: 0 | Z52: 0 | AA52: 0 | AB52: 0.9074335619 | AC52: 0.08795194515 | AD52: -10 | AE52: 0 | AF52: 0 | AG52: 1 | AS52: 5 | AT52: 10 | AU52: 0
A53: =A45+7 -> 15 | B53: =OFFSET(Calculations!AS$43,$A53,0)-U$3-B$10 -> 0 | C53: =OFFSET(Calculations!AT$43,$A53,0)-V$3-B$11 -> 20.57782492 | D53: =OFFSET(Calculations!AU$43,$A53,0)-W$3-B$12 -> -8.930892467 | E53: =B53*F$5+C53*F$4 -> 0 | F53: =C53*F$5-B53*F$4 -> 20.57782492 | G53: =D53 -> -8.930892467 | H53: 0 | I53: =F53*F$7+G53*F$6 -> 20.57782492 | J53: =G53*F$7-F53*F$6 -> -8.930892467 | K53: =H53*F$9+J53*F$8 -> 0 | L53: =I53 -> 20.57782492 | M53: =J53*F$9-H53*F$8 -> -8.930892467 | P53: =IF(MIN(L53:L59)+B$2+B$1>0,1,0) -> 1 | Q53: =IF(P53=1,K53*B$1/(B$1+B$2+L53),99999) -> 0 | R53: =M53*B$1/(B$1+B$2+L53) -> -5.841417752 | U53: =(2*U45+8*U55)/10 -> 0 | V53: 7.414640606 | W53: 6.969322614 | X53: -10 | Y53: 0 | Z53: 0 | AA53: 0 | AB53: 0.9019423156 | AC53: 0.09835974915 | AD53: -10 | AE53: 0 | AF53: 0 | AG53: 1 | AS53: 0 | AT53: 9.268300757 | AU53: 6.961653268
A54: =A46+7 -> 8 | B54: =OFFSET(Calculations!AS$43,$A54,0)-U$3-B$10 -> 0 | C54: =OFFSET(Calculations!AT$43,$A54,0)-V$3-B$11 -> 10.31922993 | D54: =OFFSET(Calculations!AU$43,$A54,0)-W$3-B$12 -> -10.03726987 | E54: 0 | F54: 10.31922993 | G54: -10.03726987 | H54: 0 | I54: 10.31922993 | J54: -10.03726987 | K54: 0 | L54: 10.31922993 | M54: -10.03726987 | Q54: =IF(P53=1,K54*B$1/(B$1+B$2+L54),99999) -> 0 | R54: -9.879577036 | U54: =(1*U45+9*U55)/10 -> 0 | V54: 8.341470681 | W54: 6.965487941 | X54: -10 | Y54: 0 | Z54: 0 | AA54: 0 | AB54: 0.8964510692 | AC54: 0.1087675531 | AD54: -10 | AE54: 0 | AF54: 0 | AG54: 1 | AS54: -7 | AT54: 10 | AU54: 0
A55: 7 | B55: =OFFSET(Calculations!AS$43,$A55,0)-U$3-B$10 -> -5 | C55: =OFFSET(Calculations!AT$43,$A55,0)-V$3-B$11 -> 10 | D55: =OFFSET(Calculations!AU$43,$A55,0)-W$3-B$12 -> -7 | E55: -5 | F55: 10 | G55: -7 | H55: -5 | I55: 10 | J55: -7 | K55: -5 | L55: 10 | M55: -7 | Q55: =IF(P53=1,K55*B$1/(B$1+B$2+L55),99999) -> -5 | R55: -7 | T55: =T45+7 -> 7 | U55: =OFFSET(Calculations!AS$46,$T55,0) -> 0 | V55: =OFFSET(Calculations!AT$46,$T55,0) -> 9.268300757 | W55: =OFFSET(Calculations!AU$46,$T55,0) -> 6.961653268 | X55: =OFFSET(Calculations!AS$43,$T55,0)-OFFSET(Calculations!AS$45,$T55,0) -> -10 | Y55: =OFFSET(Calculations!AT$43,$T55,0)-OFFSET(Calculations!AT$45,$T55,0) -> 0 | Z55: =OFFSET(Calculations!AU$43,$T55,0)-OFFSET(Calculations!AU$45,$T55,0) -> 0 | AA55: 0 | AB55: 0.8909598229 | AC55: 0.1191753571 | AD55: -10 | AE55: 0 | AF55: 0 | AG55: 1 | AS55: 0 | AT55: 8.432073051 | AU55: 14.91782843
A56: 14 | B56: =OFFSET(Calculations!AS$43,$A56,0)-U$3-B$10 -> -5 | C56: =OFFSET(Calculations!AT$43,$A56,0)-V$3-B$11 -> 19.94521895 | D56: =OFFSET(Calculations!AU$43,$A56,0)-W$3-B$12 -> -5.954715367 | E56: -5 | F56: 19.94521895 | G56: -5.954715367 | H56: -5 | I56: 19.94521895 | J56: -5.954715367 | K56: -5 | L56: 19.94521895 | M56: -5.954715367 | Q56: =IF(P53=1,K56*B$1/(B$1+B$2+L56),99999) -> -3.339431251 | R56: -3.977072518 | U56: =(9*U55+U65)/10 -> 0 | V56: 10.19045439 | W56: 7.054719725 | X56: -10 | Y56: 0 | Z56: 0 | AA56: 0 | AB56: 0.885760854 | AC56: 0.1235268405 | AD56: -10 | AE56: 0 | AF56: 0 | AG56: 1 | AS56: 7 | AT56: 10 | AU56: 0
A57: 16 | B57: =OFFSET(Calculations!AS$43,$A57,0)-U$3-B$10 -> 5 | C57: =OFFSET(Calculations!AT$43,$A57,0)-V$3-B$11 -> 19.94521895 | D57: =OFFSET(Calculations!AU$43,$A57,0)-W$3-B$12 -> -5.954715367 | E57: 5 | F57: 19.94521895 | G57: -5.954715367 | H57: 5 | I57: 19.94521895 | J57: -5.954715367 | K57: 5 | L57: 19.94521895 | M57: -5.954715367 | Q57: =IF(P53=1,K57*B$1/(B$1+B$2+L57),99999) -> 3.339431251 | R57: -3.977072518 | U57: =(8*U55+2*U65)/10 -> 0 | V57: 11.11260803 | W57: 7.147786182 | X57: -10 | Y57: 0 | Z57: 0 | AA57: 0 | AB57: 0.8805618851 | AC57: 0.1278783238 | AD57: -10 | AE57: 0 | AF57: 0 | AG57: 1 | AS57: -5 | AT57: 19.94521895 | AU57: 1.045284633
A58: 9 | B58: =OFFSET(Calculations!AS$43,$A58,0)-U$3-B$10 -> 5 | C58: =OFFSET(Calculations!AT$43,$A58,0)-V$3-B$11 -> 10 | D58: =OFFSET(Calculations!AU$43,$A58,0)-W$3-B$12 -> -7 | E58: 5 | F58: 10 | G58: -7 | H58: 5 | I58: 10 | J58: -7 | K58: 5 | L58: 10 | M58: -7 | Q58: =IF(P53=1,K58*B$1/(B$1+B$2+L58),99999) -> 5 | R58: -7 | U58: =(7*U55+3*U65)/10 -> 0 | V58: 12.03476167 | W58: 7.240852639 | X58: -10 | Y58: 0 | Z58: 0 | AA58: 0 | AB58: 0.8753629162 | AC58: 0.1322298072 | AD58: -10 | AE58: 0 | AF58: 0 | AG58: 1 | AS58: 0 | AT58: 20.57782492 | AU58: -1.930892467
A59: 8 | B59: =OFFSET(Calculations!AS$43,$A59,0)-U$3-B$10 -> 0 | C59: =OFFSET(Calculations!AT$43,$A59,0)-V$3-B$11 -> 10.31922993 | D59: =OFFSET(Calculations!AU$43,$A59,0)-W$3-B$12 -> -10.03726987 | E59: 0 | F59: 10.31922993 | G59: -10.03726987 | H59: 0 | I59: 10.31922993 | J59: -10.03726987 | K59: 0 | L59: 10.31922993 | M59: -10.03726987 | Q59: =IF(P53=1,K59*B$1/(B$1+B$2+L59),99999) -> 0 | R59: -9.879577036 | U59: =(6*U55+4*U65)/10 -> 0 | V59: 12.9569153 | W59: 7.333919096 | X59: -10 | Y59: 0 | Z59: 0 | AA59: 0 | AB59: 0.8701639474 | AC59: 0.1365812905 | AD59: -10 | AE59: 0 | AF59: 0 | AG59: 1 | AS59: 5 | AT59: 19.94521895 | AU59: 1.045284633
U60: =(5*U55+5*U65)/10 -> 0 | V60: 13.87906894 | W60: 7.426985553 | X60: -10 | Y60: 0 | Z60: 0 | AA60: 0 | AB60: 0.8617050596 | AC60: 0.1516125569 | AD60: -10 | AE60: 0 | AF60: 0 | AG60: 1 | AS60: 0 | AT60: 18.48983712 | AU60: 7.892317838
A61: =A53+7 -> 22 | B61: =OFFSET(Calculations!AS$43,$A61,0)-U$3-B$10 -> 0 | C61: =OFFSET(Calculations!AT$43,$A61,0)-V$3-B$11 -> 30.96019162 | D61: =OFFSET(Calculations!AU$43,$A61,0)-W$3-B$12 -> -6.646077317 | E61: =B61*F$5+C61*F$4 -> 0 | F61: =C61*F$5-B61*F$4 -> 30.96019162 | G61: =D61 -> -6.646077317 | H61: 0 | I61: =F61*F$7+G61*F$6 -> 30.96019162 | J61: =G61*F$7-F61*F$6 -> -6.646077317 | K61: =H61*F$9+J61*F$8 -> 0 | L61: =I61 -> 30.96019162 | M61: =J61*F$9-H61*F$8 -> -6.646077317 | P61: =IF(MIN(L61:L67)+B$2+B$1>0,1,0) -> 1 | Q61: =IF(P61=1,K61*B$1/(B$1+B$2+L61),99999) -> 0 | R61: =M61*B$1/(B$1+B$2+L61) -> -3.245139758 | U61: =(4*U55+6*U65)/10 -> 0 | V61: 14.80122257 | W61: 7.52005201 | X61: -10 | Y61: 0 | Z61: 0 | AA61: 0 | AB61: 0.8532461718 | AC61: 0.1666438233 | AD61: -10 | AE61: 0 | AF61: 0 | AG61: 1 | AS61: -7 | AT61: 19.94521895 | AU61: 1.045284633
A62: 15 | B62: =OFFSET(Calculations!AS$43,$A62,0)-U$3-B$10 -> 0 | C62: =OFFSET(Calculations!AT$43,$A62,0)-V$3-B$11 -> 20.57782492 | D62: =OFFSET(Calculations!AU$43,$A62,0)-W$3-B$12 -> -8.930892467 | E62: 0 | F62: 20.57782492 | G62: -8.930892467 | H62: 0 | I62: 20.57782492 | J62: -8.930892467 | K62: 0 | L62: 20.57782492 | M62: -8.930892467 | Q62: =IF(P61=1,K62*B$1/(B$1+B$2+L62),99999) -> 0 | R62: -5.841417752 | U62: =(3*U55+7*U65)/10 -> 0 | V62: 15.72337621 | W62: 7.613118467 | X62: -10 | Y62: 0 | Z62: 0 | AA62: 0 | AB62: 0.844787284 | AC62: 0.1816750896 | AD62: -10 | AE62: 0 | AF62: 0 | AG62: 1 | AS62: 0 | AT62: 16.82654359 | AU62: 15.71749864
A63: 14 | B63: =OFFSET(Calculations!AS$43,$A63,0)-U$3-B$10 -> -5 | C63: =OFFSET(Calculations!AT$43,$A63,0)-V$3-B$11 -> 19.94521895 | D63: =OFFSET(Calculations!AU$43,$A63,0)-W$3-B$12 -> -5.954715367 | E63: -5 | F63: 19.94521895 | G63: -5.954715367 | H63: -5 | I63: 19.94521895 | J63: -5.954715367 | K63: -5 | L63: 19.94521895 | M63: -5.954715367 | Q63: =IF(P61=1,K63*B$1/(B$1+B$2+L63),99999) -> -3.339431251 | R63: -3.977072518 | U63: =(2*U55+8*U65)/10 -> 0 | V63: 16.64552985 | W63: 7.706184924 | X63: -10 | Y63: 0 | Z63: 0 | AA63: 0 | AB63: 0.8363283962 | AC63: 0.196706356 | AD63: -10 | AE63: 0 | AF63: 0 | AG63: 1 | AS63: 7 | AT63: 19.94521895 | AU63: 1.045284633
A64: 21 | B64: =OFFSET(Calculations!AS$43,$A64,0)-U$3-B$10 -> -5 | C64: =OFFSET(Calculations!AT$43,$A64,0)-V$3-B$11 -> 29.72669496 | D64: =OFFSET(Calculations!AU$43,$A64,0)-W$3-B$12 -> -3.875598459 | E64: -5 | F64: 29.72669496 | G64: -3.875598459 | H64: -5 | I64: 29.72669496 | J64: -3.875598459 | K64: -5 | L64: 29.72669496 | M64: -3.875598459 | Q64: =IF(P61=1,K64*B$1/(B$1+B$2+L64),99999) -> -2.51719908 | R64: -1.951130575 | U64: =(1*U55+9*U65)/10 -> 0 | V64: 17.56768348 | W64: 7.799251381 | X64: -10 | Y64: 0 | Z64: 0 | AA64: 0 | AB64: 0.8278695083 | AC64: 0.2117376223 | AD64: -10 | AE64: 0 | AF64: 0 | AG64: 1 | AS64: -5 | AT64: 29.72669496 | AU64: 3.124401541
A65: 23 | B65: =OFFSET(Calculations!AS$43,$A65,0)-U$3-B$10 -> 5 | C65: =OFFSET(Calculations!AT$43,$A65,0)-V$3-B$11 -> 29.72669496 | D65: =OFFSET(Calculations!AU$43,$A65,0)-W$3-B$12 -> -3.875598459 | E65: 5 | F65: 29.72669496 | G65: -3.875598459 | H65: 5 | I65: 29.72669496 | J65: -3.875598459 | K65: 5 | L65: 29.72669496 | M65: -3.875598459 | Q65: =IF(P61=1,K65*B$1/(B$1+B$2+L65),99999) -> 2.51719908 | R65: -1.951130575 | T65: =T55+7 -> 14 | U65: =OFFSET(Calculations!AS$46,$T65,0) -> 0 | V65: =OFFSET(Calculations!AT$46,$T65,0) -> 18.48983712 | W65: =OFFSET(Calculations!AU$46,$T65,0) -> 7.892317838 | X65: =OFFSET(Calculations!AS$43,$T65,0)-OFFSET(Calculations!AS$45,$T65,0) -> -10 | Y65: =OFFSET(Calculations!AT$43,$T65,0)-OFFSET(Calculations!AT$45,$T65,0) -> 0 | Z65: =OFFSET(Calculations!AU$43,$T65,0)-OFFSET(Calculations!AU$45,$T65,0) -> 0 | AA65: 0 | AB65: 0.8194106205 | AC65: 0.2267688887 | AD65: -10 | AE65: 0 | AF65: 0 | AG65: 1 | AS65: 0 | AT65: 30.96019162 | AU65: 0.353922683
A66: 16 | B66: =OFFSET(Calculations!AS$43,$A66,0)-U$3-B$10 -> 5 | C66: =OFFSET(Calculations!AT$43,$A66,0)-V$3-B$11 -> 19.94521895 | D66: =OFFSET(Calculations!AU$43,$A66,0)-W$3-B$12 -> -5.954715367 | E66: 5 | F66: 19.94521895 | G66: -5.954715367 | H66: 5 | I66: 19.94521895 | J66: -5.954715367 | K66: 5 | L66: 19.94521895 | M66: -5.954715367 | Q66: =IF(P61=1,K66*B$1/(B$1+B$2+L66),99999) -> 3.339431251 | R66: -3.977072518 | U66: =(9*U65+U75)/10 -> 0 | V66: 19.32880725 | W66: 8.055008028 | X66: -10 | Y66: 0 | Z66: 0 | AA66: 0 | AB66: 0.8161507016 | AC66: 0.2374486717 | AD66: -10 | AE66: 0 | AF66: 0 | AG66: 1 | AS66: 5 | AT66: 29.72669496 | AU66: 3.124401541
A67: 15 | B67: =OFFSET(Calculations!AS$43,$A67,0)-U$3-B$10 -> 0 | C67: =OFFSET(Calculations!AT$43,$A67,0)-V$3-B$11 -> 20.57782492 | D67: =OFFSET(Calculations!AU$43,$A67,0)-W$3-B$12 -> -8.930892467 | E67: 0 | F67: 20.57782492 | G67: -8.930892467 | H67: 0 | I67: 20.57782492 | J67: -8.930892467 | K67: 0 | L67: 20.57782492 | M67: -8.930892467 | Q67: =IF(P61=1,K67*B$1/(B$1+B$2+L67),99999) -> 0 | R67: -5.841417752 | U67: =(8*U65+2*U75)/10 -> 0 | V67: 20.16777739 | W67: 8.217698219 | X67: -10 | Y67: 0 | Z67: 0 | AA67: 0 | AB67: 0.8128907827 | AC67: 0.2481284547 | AD67: -10 | AE67: 0 | AF67: 0 | AG67: 1 | AS67: 0 | AT67: 26.87953846 | AU67: 9.519219744
U68: =(7*U65+3*U75)/10 -> 0 | V68: 21.00674752 | W68: 8.38038841 | X68: -10 | Y68: 0 | Z68: 0 | AA68: 0 | AB68: 0.8096308637 | AC68: 0.2588082377 | AD68: -10 | AE68: 0 | AF68: 0 | AG68: 1 | AS68: -7 | AT68: 29.72669496 | AU68: 3.124401541
A69: =A61+7 -> 29 | B69: =OFFSET(Calculations!AS$43,$A69,0)-U$3-B$10 -> 0 | C69: =OFFSET(Calculations!AT$43,$A69,0)-V$3-B$11 -> 40.63961214 | D69: =OFFSET(Calculations!AU$43,$A69,0)-W$3-B$12 -> -2.254699419 | E69: =B69*F$5+C69*F$4 -> 0 | F69: =C69*F$5-B69*F$4 -> 40.63961214 | G69: =D69 -> -2.254699419 | H69: 0 | I69: =F69*F$7+G69*F$6 -> 40.63961214 | J69: =G69*F$7-F69*F$6 -> -2.254699419 | K69: =H69*F$9+J69*F$8 -> 0 | L69: =I69 -> 40.63961214 | M69: =J69*F$9-H69*F$8 -> -2.254699419 | P69: =IF(MIN(L69:L75)+B$2+B$1>0,1,0) -> 1 | Q69: =IF(P69=1,K69*B$1/(B$1+B$2+L69),99999) -> 0 | R69: =M69*B$1/(B$1+B$2+L69) -> -0.8904884236 | U69: =(6*U65+4*U75)/10 -> 0 | V69: 21.84571765 | W69: 8.5430786 | X69: -10 | Y69: 0 | Z69: 0 | AA69: 0 | AB69: 0.8063709448 | AC69: 0.2694880207 | AD69: -10 | AE69: 0 | AF69: 0 | AG69: 1 | AS69: 0 | AT69: 23.62564531 | AU69: 16.82758341
A70: 22 | B70: =OFFSET(Calculations!AS$43,$A70,0)-U$3-B$10 -> 0 | C70: =OFFSET(Calculations!AT$43,$A70,0)-V$3-B$11 -> 30.96019162 | D70: =OFFSET(Calculations!AU$43,$A70,0)-W$3-B$12 -> -6.646077317 | E70: 0 | F70: 30.96019162 | G70: -6.646077317 | H70: 0 | I70: 30.96019162 | J70: -6.646077317 | K70: 0 | L70: 30.96019162 | M70: -6.646077317 | Q70: =IF(P69=1,K70*B$1/(B$1+B$2+L70),99999) -> 0 | R70: -3.245139758 | U70: =(5*U65+5*U75)/10 -> 0 | V70: 22.68468779 | W70: 8.705768791 | X70: -10 | Y70: 0 | Z70: 0 | AA70: 0 | AB70: 0.7977018922 | AC70: 0.2899364326 | AD70: -10 | AE70: 0 | AF70: 0 | AG70: 1 | AS70: 7 | AT70: 29.72669496 | AU70: 3.124401541
A71: 21 | B71: =OFFSET(Calculations!AS$43,$A71,0)-U$3-B$10 -> -5 | C71: =OFFSET(Calculations!AT$43,$A71,0)-V$3-B$11 -> 29.72669496 | D71: =OFFSET(Calculations!AU$43,$A71,0)-W$3-B$12 -> -3.875598459 | E71: -5 | F71: 29.72669496 | G71: -3.875598459 | H71: -5 | I71: 29.72669496 | J71: -3.875598459 | K71: -5 | L71: 29.72669496 | M71: -3.875598459 | Q71: =IF(P69=1,K71*B$1/(B$1+B$2+L71),99999) -> -2.51719908 | R71: -1.951130575 | U71: =(4*U65+6*U75)/10 -> 0 | V71: 23.52365792 | W71: 8.868458982 | X71: -10 | Y71: 0 | Z71: 0 | AA71: 0 | AB71: 0.7890328397 | AC71: 0.3103848445 | AD71: -10 | AE71: 0 | AF71: 0 | AG71: 1 | AS71: -5 | AT71: 38.86214954 | AU71: 7.191767972
A72: 28 | B72: =OFFSET(Calculations!AS$43,$A72,0)-U$3-B$10 -> -5 | C72: =OFFSET(Calculations!AT$43,$A72,0)-V$3-B$11 -> 38.86214954 | D72: =OFFSET(Calculations!AU$43,$A72,0)-W$3-B$12 -> 0.1917679716 | E72: -5 | F72: 38.86214954 | G72: 0.1917679716 | H72: -5 | I72: 38.86214954 | J72: 0.1917679716 | K72: -5 | L72: 38.86214954 | M72: 0.1917679716 | Q72: =IF(P69=1,K72*B$1/(B$1+B$2+L72),99999) -> -2.046573901 | R72: 0.07849346516 | U72: =(3*U65+7*U75)/10 -> 0 | V72: 24.36262806 | W72: 9.031149172 | X72: -10 | Y72: 0 | Z72: 0 | AA72: 0 | AB72: 0.7803637871 | AC72: 0.3308332564 | AD72: -10 | AE72: 0 | AF72: 0 | AG72: 1 | AS72: 0 | AT72: 40.63961214 | AU72: 4.745300581
A73: 30 | B73: =OFFSET(Calculations!AS$43,$A73,0)-U$3-B$10 -> 5 | C73: =OFFSET(Calculations!AT$43,$A73,0)-V$3-B$11 -> 38.86214954 | D73: =OFFSET(Calculations!AU$43,$A73,0)-W$3-B$12 -> 0.1917679716 | E73: 5 | F73: 38.86214954 | G73: 0.1917679716 | H73: 5 | I73: 38.86214954 | J73: 0.1917679716 | K73: 5 | L73: 38.86214954 | M73: 0.1917679716 | Q73: =IF(P69=1,K73*B$1/(B$1+B$2+L73),99999) -> 2.046573901 | R73: 0.07849346516 | U73: =(2*U65+8*U75)/10 -> 0 | V73: 25.20159819 | W73: 9.193839363 | X73: -10 | Y73: 0 | Z73: 0 | AA73: 0 | AB73: 0.7716947345 | AC73: 0.3512816682 | AD73: -10 | AE73: 0 | AF73: 0 | AG73: 1 | AS73: 5 | AT73: 38.86214954 | AU73: 7.191767972
A74: 23 | B74: =OFFSET(Calculations!AS$43,$A74,0)-U$3-B$10 -> 5 | C74: =OFFSET(Calculations!AT$43,$A74,0)-V$3-B$11 -> 29.72669496 | D74: =OFFSET(Calculations!AU$43,$A74,0)-W$3-B$12 -> -3.875598459 | E74: 5 | F74: 29.72669496 | G74: -3.875598459 | H74: 5 | I74: 29.72669496 | J74: -3.875598459 | K74: 5 | L74: 29.72669496 | M74: -3.875598459 | Q74: =IF(P69=1,K74*B$1/(B$1+B$2+L74),99999) -> 2.51719908 | R74: -1.951130575 | U74: =(1*U65+9*U75)/10 -> 0 | V74: 26.04056833 | W74: 9.356529554 | X74: -10 | Y74: 0 | Z74: 0 | AA74: 0 | AB74: 0.763025682 | AC74: 0.3717300801 | AD74: -10 | AE74: 0 | AF74: 0 | AG74: 1 | AS74: 0 | AT74: 34.74765277 | AU74: 12.85488693
A75: 22 | B75: =OFFSET(Calculations!AS$43,$A75,0)-U$3-B$10 -> 0 | C75: =OFFSET(Calculations!AT$43,$A75,0)-V$3-B$11 -> 30.96019162 | D75: =OFFSET(Calculations!AU$43,$A75,0)-W$3-B$12 -> -6.646077317 | E75: 0 | F75: 30.96019162 | G75: -6.646077317 | H75: 0 | I75: 30.96019162 | J75: -6.646077317 | K75: 0 | L75: 30.96019162 | M75: -6.646077317 | Q75: =IF(P69=1,K75*B$1/(B$1+B$2+L75),99999) -> 0 | R75: -3.245139758 | T75: =T65+7 -> 21 | U75: =OFFSET(Calculations!AS$46,$T75,0) -> 0 | V75: =OFFSET(Calculations!AT$46,$T75,0) -> 26.87953846 | W75: =OFFSET(Calculations!AU$46,$T75,0) -> 9.519219744 | X75: =OFFSET(Calculations!AS$43,$T75,0)-OFFSET(Calculations!AS$45,$T75,0) -> -10 | Y75: =OFFSET(Calculations!AT$43,$T75,0)-OFFSET(Calculations!AT$45,$T75,0) -> 0 | Z75: =OFFSET(Calculations!AU$43,$T75,0)-OFFSET(Calculations!AU$45,$T75,0) -> 0 | AA75: 0 | AB75: 0.7543566294 | AC75: 0.392178492 | AD75: -10 | AE75: 0 | AF75: 0 | AG75: 1 | AS75: -7 | AT75: 38.86214954 | AU75: 7.191767972
U76: =(9*U75+U85)/10 -> 0 | V76: 27.66634989 | W76: 9.852786463 | X76: -10 | Y76: 0 | Z76: 0 | AA76: 0 | AB76: 0.7489474958 | AC76: 0.4019471209 | AD76: -10 | AE76: 0 | AF76: 0 | AG76: 2 | AS76: 0 | AT76: 30.04537075 | AU76: 19.32702289
A77: =A69+7 -> 36 | B77: =OFFSET(Calculations!AS$43,$A77,0)-U$3-B$10 -> 0 | C77: =OFFSET(Calculations!AT$43,$A77,0)-V$3-B$11 -> 49.1941397 | D77: =OFFSET(Calculations!AU$43,$A77,0)-W$3-B$12 -> 4.051076499 | E77: =B77*F$5+C77*F$4 -> 0 | F77: =C77*F$5-B77*F$4 -> 49.1941397 | G77: =D77 -> 4.051076499 | H77: 0 | I77: =F77*F$7+G77*F$6 -> 49.1941397 | J77: =G77*F$7-F77*F$6 -> 4.051076499 | K77: =H77*F$9+J77*F$8 -> 0 | L77: =I77 -> 49.1941397 | M77: =J77*F$9-H77*F$8 -> 4.051076499 | P77: =IF(MIN(L77:L83)+B$2+B$1>0,1,0) -> 1 | Q77: =IF(P77=1,K77*B$1/(B$1+B$2+L77),99999) -> 0 | R77: =M77*B$1/(B$1+B$2+L77) -> 1.368742419 | U77: =(8*U75+2*U85)/10 -> 0 | V77: 28.45316132 | W77: 10.18635318 | X77: -10 | Y77: 0 | Z77: 0 | AA77: 0 | AB77: 0.7435383622 | AC77: 0.4117157497 | AD77: -10 | AE77: 0 | AF77: 0 | AG77: 2 | AS77: 7 | AT77: 38.86214954 | AU77: 7.191767972
A78: 29 | B78: =OFFSET(Calculations!AS$43,$A78,0)-U$3-B$10 -> 0 | C78: =OFFSET(Calculations!AT$43,$A78,0)-V$3-B$11 -> 40.63961214 | D78: =OFFSET(Calculations!AU$43,$A78,0)-W$3-B$12 -> -2.254699419 | E78: 0 | F78: 40.63961214 | G78: -2.254699419 | H78: 0 | I78: 40.63961214 | J78: -2.254699419 | K78: 0 | L78: 40.63961214 | M78: -2.254699419 | Q78: =IF(P77=1,K78*B$1/(B$1+B$2+L78),99999) -> 0 | R78: -0.8904884236 | U78: =(7*U75+3*U85)/10 -> 0 | V78: 29.23997275 | W78: 10.5199199 | X78: -10 | Y78: 0 | Z78: 0 | AA78: 0 | AB78: 0.7381292285 | AC78: 0.4214843786 | AD78: -10 | AE78: 0 | AF78: 0 | AG78: 2 | AS78: -5 | AT78: 46.95231948 | AU78: 13.06962049
A79: 28 | B79: =OFFSET(Calculations!AS$43,$A79,0)-U$3-B$10 -> -5 | C79: =OFFSET(Calculations!AT$43,$A79,0)-V$3-B$11 -> 38.86214954 | D79: =OFFSET(Calculations!AU$43,$A79,0)-W$3-B$12 -> 0.1917679716 | E79: -5 | F79: 38.86214954 | G79: 0.1917679716 | H79: -5 | I79: 38.86214954 | J79: 0.1917679716 | K79: -5 | L79: 38.86214954 | M79: 0.1917679716 | Q79: =IF(P77=1,K79*B$1/(B$1+B$2+L79),99999) -> -2.046573901 | R79: 0.07849346516 | U79: =(6*U75+4*U85)/10 -> 0 | V79: 30.02678418 | W79: 10.85348662 | X79: -10 | Y79: 0 | Z79: 0 | AA79: 0 | AB79: 0.7327200949 | AC79: 0.4312530075 | AD79: -10 | AE79: 0 | AF79: 0 | AG79: 2 | AS79: 0 | AT79: 49.1941397 | AU79: 11.0510765
A80: 35 | B80: =OFFSET(Calculations!AS$43,$A80,0)-U$3-B$10 -> -5 | C80: =OFFSET(Calculations!AT$43,$A80,0)-V$3-B$11 -> 46.95231948 | D80: =OFFSET(Calculations!AU$43,$A80,0)-W$3-B$12 -> 6.069620495 | E80: -5 | F80: 46.95231948 | G80: 6.069620495 | H80: -5 | I80: 46.95231948 | J80: 6.069620495 | K80: -5 | L80: 46.95231948 | M80: 6.069620495 | Q80: =IF(P77=1,K80*B$1/(B$1+B$2+L80),99999) -> -1.755854738 | R80: 2.131474381 | U80: =(5*U75+5*U85)/10 -> 0 | V80: 30.81359562 | W80: 11.18705334 | X80: -10 | Y80: 0 | Z80: 0 | AA80: 0 | AB80: 0.7199890181 | AC80: 0.4494521751 | AD80: -10 | AE80: 0 | AF80: 0 | AG80: 2 | AS80: 5 | AT80: 46.95231948 | AU80: 13.06962049
A81: 37 | B81: =OFFSET(Calculations!AS$43,$A81,0)-U$3-B$10 -> 5 | C81: =OFFSET(Calculations!AT$43,$A81,0)-V$3-B$11 -> 46.95231948 | D81: =OFFSET(Calculations!AU$43,$A81,0)-W$3-B$12 -> 6.069620495 | E81: 5 | F81: 46.95231948 | G81: 6.069620495 | H81: 5 | I81: 46.95231948 | J81: 6.069620495 | K81: 5 | L81: 46.95231948 | M81: 6.069620495 | Q81: =IF(P77=1,K81*B$1/(B$1+B$2+L81),99999) -> 1.755854738 | R81: 2.131474381 | U81: =(4*U75+6*U85)/10 -> 0 | V81: 31.60040705 | W81: 11.52062006 | X81: -10 | Y81: 0 | Z81: 0 | AA81: 0 | AB81: 0.7072579412 | AC81: 0.4676513428 | AD81: -10 | AE81: 0 | AF81: 0 | AG81: 2 | AS81: 0 | AT81: 41.7503057 | AU81: 17.75353474
A82: 30 | B82: =OFFSET(Calculations!AS$43,$A82,0)-U$3-B$10 -> 5 | C82: =OFFSET(Calculations!AT$43,$A82,0)-V$3-B$11 -> 38.86214954 | D82: =OFFSET(Calculations!AU$43,$A82,0)-W$3-B$12 -> 0.1917679716 | E82: 5 | F82: 38.86214954 | G82: 0.1917679716 | H82: 5 | I82: 38.86214954 | J82: 0.1917679716 | K82: 5 | L82: 38.86214954 | M82: 0.1917679716 | Q82: =IF(P77=1,K82*B$1/(B$1+B$2+L82),99999) -> 2.046573901 | R82: 0.07849346516 | U82: =(3*U75+7*U85)/10 -> 0 | V82: 32.38721848 | W82: 11.85418678 | X82: -10 | Y82: 0 | Z82: 0 | AA82: 0 | AB82: 0.6945268644 | AC82: 0.4858505104 | AD82: -10 | AE82: 0 | AF82: 0 | AG82: 2 | AS82: -7 | AT82: 46.95231948 | AU82: 13.06962049
A83: 29 | B83: =OFFSET(Calculations!AS$43,$A83,0)-U$3-B$10 -> 0 | C83: =OFFSET(Calculations!AT$43,$A83,0)-V$3-B$11 -> 40.63961214 | D83: =OFFSET(Calculations!AU$43,$A83,0)-W$3-B$12 -> -2.254699419 | E83: 0 | F83: 40.63961214 | G83: -2.254699419 | H83: 0 | I83: 40.63961214 | J83: -2.254699419 | K83: 0 | L83: 40.63961214 | M83: -2.254699419 | Q83: =IF(P77=1,K83*B$1/(B$1+B$2+L83),99999) -> 0 | R83: -0.8904884236 | U83: =(2*U75+8*U85)/10 -> 0 | V83: 33.17402991 | W83: 12.18775349 | X83: -10 | Y83: 0 | Z83: 0 | AA83: 0 | AB83: 0.6817957875 | AC83: 0.504049678 | AD83: -10 | AE83: 0 | AF83: 0 | AG83: 2 | AS83: 0 | AT83: 35.8051471 | AU83: 23.10657959
U84: =(1*U75+9*U85)/10 -> 0 | V84: 33.96084134 | W84: 12.52132021 | X84: -10 | Y84: 0 | Z84: 0 | AA84: 0 | AB84: 0.6690647106 | AC84: 0.5222488457 | AD84: -10 | AE84: 0 | AF84: 0 | AG84: 2 | AS84: 7 | AT84: 46.95231948 | AU84: 13.06962049
A85: =A77+7 -> 43 | B85: =OFFSET(Calculations!AS$43,$A85,0)-U$3-B$10 -> 0 | C85: =OFFSET(Calculations!AT$43,$A85,0)-V$3-B$11 -> 56.25093936 | D85: =OFFSET(Calculations!AU$43,$A85,0)-W$3-B$12 -> 11.99573542 | E85: =B85*F$5+C85*F$4 -> 0 | F85: =C85*F$5-B85*F$4 -> 56.25093936 | G85: =D85 -> 11.99573542 | H85: 0 | I85: =F85*F$7+G85*F$6 -> 56.25093936 | J85: =G85*F$7-F85*F$6 -> 11.99573542 | K85: =H85*F$9+J85*F$8 -> 0 | L85: =I85 -> 56.25093936 | M85: =J85*F$9-H85*F$8 -> 11.99573542 | P85: =IF(MIN(L85:L91)+B$2+B$1>0,1,0) -> 1 | Q85: =IF(P85=1,K85*B$1/(B$1+B$2+L85),99999) -> 0 | R85: =M85*B$1/(B$1+B$2+L85) -> 3.621302741 | T85: =T75+7 -> 28 | U85: =OFFSET(Calculations!AS$46,$T85,0) -> 0 | V85: =OFFSET(Calculations!AT$46,$T85,0) -> 34.74765277 | W85: =OFFSET(Calculations!AU$46,$T85,0) -> 12.85488693 | X85: =OFFSET(Calculations!AS$43,$T85,0)-OFFSET(Calculations!AS$45,$T85,0) -> -10 | Y85: =OFFSET(Calculations!AT$43,$T85,0)-OFFSET(Calculations!AT$45,$T85,0) -> 0 | Z85: =OFFSET(Calculations!AU$43,$T85,0)-OFFSET(Calculations!AU$45,$T85,0) -> 0 | AA85: 0 | AB85: 0.6563336338 | AC85: 0.5404480133 | AD85: -10 | AE85: 0 | AF85: 0 | AG85: 2 | AS85: -5 | AT85: 53.64362554 | AU85: 20.50106875
A86: 36 | B86: =OFFSET(Calculations!AS$43,$A86,0)-U$3-B$10 -> 0 | C86: =OFFSET(Calculations!AT$43,$A86,0)-V$3-B$11 -> 49.1941397 | D86: =OFFSET(Calculations!AU$43,$A86,0)-W$3-B$12 -> 4.051076499 | E86: 0 | F86: 49.1941397 | G86: 4.051076499 | H86: 0 | I86: 49.1941397 | J86: 4.051076499 | K86: 0 | L86: 49.1941397 | M86: 4.051076499 | Q86: =IF(P85=1,K86*B$1/(B$1+B$2+L86),99999) -> 0 | R86: 1.368742419 | U86: =(9*U85+U95)/10 -> 0 | V86: 35.44791806 | W86: 13.34475171 | X86: -10 | Y86: 0 | Z86: 0 | AA86: 0 | AB86: 0.6490116906 | AC86: 0.5488785521 | AD86: -10 | AE86: 0 | AF86: 0 | AG86: 2 | AS86: 0 | AT86: 56.25093936 | AU86: 18.99573542
A87: 35 | B87: =OFFSET(Calculations!AS$43,$A87,0)-U$3-B$10 -> -5 | C87: =OFFSET(Calculations!AT$43,$A87,0)-V$3-B$11 -> 46.95231948 | D87: =OFFSET(Calculations!AU$43,$A87,0)-W$3-B$12 -> 6.069620495 | E87: -5 | F87: 46.95231948 | G87: 6.069620495 | H87: -5 | I87: 46.95231948 | J87: 6.069620495 | K87: -5 | L87: 46.95231948 | M87: 6.069620495 | Q87: =IF(P85=1,K87*B$1/(B$1+B$2+L87),99999) -> -1.755854738 | R87: 2.131474381 | U87: =(8*U85+2*U95)/10 -> 0 | V87: 36.14818336 | W87: 13.83461649 | X87: -10 | Y87: 0 | Z87: 0 | AA87: 0 | AB87: 0.6416897473 | AC87: 0.5573090909 | AD87: -10 | AE87: 0 | AF87: 0 | AG87: 2 | AS87: 5 | AT87: 53.64362554 | AU87: 20.50106875
A88: 42 | B88: =OFFSET(Calculations!AS$43,$A88,0)-U$3-B$10 -> -5 | C88: =OFFSET(Calculations!AT$43,$A88,0)-V$3-B$11 -> 53.64362554 | D88: =OFFSET(Calculations!AU$43,$A88,0)-W$3-B$12 -> 13.50106875 | E88: -5 | F88: 53.64362554 | G88: 13.50106875 | H88: -5 | I88: 53.64362554 | J88: 13.50106875 | K88: -5 | L88: 53.64362554 | M88: 13.50106875 | Q88: =IF(P85=1,K88*B$1/(B$1+B$2+L88),99999) -> -1.571249267 | R88: 4.242708876 | U88: =(7*U85+3*U95)/10 -> 0 | V88: 36.84844865 | W88: 14.32448127 | X88: -10 | Y88: 0 | Z88: 0 | AA88: 0 | AB88: 0.6343678041 | AC88: 0.5657396296 | AD88: -10 | AE88: 0 | AF88: 0 | AG88: 2 | AS88: 0 | AT88: 47.58144772 | AU88: 24.00106875
A89: 44 | B89: =OFFSET(Calculations!AS$43,$A89,0)-U$3-B$10 -> 5 | C89: =OFFSET(Calculations!AT$43,$A89,0)-V$3-B$11 -> 53.64362554 | D89: =OFFSET(Calculations!AU$43,$A89,0)-W$3-B$12 -> 13.50106875 | E89: 5 | F89: 53.64362554 | G89: 13.50106875 | H89: 5 | I89: 53.64362554 | J89: 13.50106875 | K89: 5 | L89: 53.64362554 | M89: 13.50106875 | Q89: =IF(P85=1,K89*B$1/(B$1+B$2+L89),99999) -> 1.571249267 | R89: 4.242708876 | U89: =(6*U85+4*U95)/10 -> 0 | V89: 37.54871394 | W89: 14.81434605 | X89: -10 | Y89: 0 | Z89: 0 | AA89: 0 | AB89: 0.6270458609 | AC89: 0.5741701684 | AD89: -10 | AE89: 0 | AF89: 0 | AG89: 2 | AS89: -7 | AT89: 53.64362554 | AU89: 20.50106875
A90: 37 | B90: =OFFSET(Calculations!AS$43,$A90,0)-U$3-B$10 -> 5 | C90: =OFFSET(Calculations!AT$43,$A90,0)-V$3-B$11 -> 46.95231948 | D90: =OFFSET(Calculations!AU$43,$A90,0)-W$3-B$12 -> 6.069620495 | E90: 5 | F90: 46.95231948 | G90: 6.069620495 | H90: 5 | I90: 46.95231948 | J90: 6.069620495 | K90: 5 | L90: 46.95231948 | M90: 6.069620495 | Q90: =IF(P85=1,K90*B$1/(B$1+B$2+L90),99999) -> 1.755854738 | R90: 2.131474381 | U90: =(5*U85+5*U95)/10 -> 0 | V90: 38.24897924 | W90: 15.30421084 | X90: -10 | Y90: 0 | Z90: 0 | AA90: 0 | AB90: 0.6124502777 | AC90: 0.5935999355 | AD90: -10 | AE90: 0 | AF90: 0 | AG90: 2 | AS90: 0 | AT90: 40.65324449 | AU90: 28.00106875
A91: 36 | B91: =OFFSET(Calculations!AS$43,$A91,0)-U$3-B$10 -> 0 | C91: =OFFSET(Calculations!AT$43,$A91,0)-V$3-B$11 -> 49.1941397 | D91: =OFFSET(Calculations!AU$43,$A91,0)-W$3-B$12 -> 4.051076499 | E91: 0 | F91: 49.1941397 | G91: 4.051076499 | H91: 0 | I91: 49.1941397 | J91: 4.051076499 | K91: 0 | L91: 49.1941397 | M91: 4.051076499 | Q91: =IF(P85=1,K91*B$1/(B$1+B$2+L91),99999) -> 0 | R91: 1.368742419 | U91: =(4*U85+6*U95)/10 -> 0 | V91: 38.94924453 | W91: 15.79407562 | X91: -10 | Y91: 0 | Z91: 0 | AA91: 0 | AB91: 0.5978546945 | AC91: 0.6130297026 | AD91: -10 | AE91: 0 | AF91: 0 | AG91: 2 | AS91: 7 | AT91: 53.64362554 | AU91: 20.50106875
U92: =(3*U85+7*U95)/10 -> 0 | V92: 39.64950982 | W92: 16.2839404 | X92: -10 | Y92: 0 | Z92: 0 | AA92: 0 | AB92: 0.5832591114 | AC92: 0.6324594696 | AD92: -10 | AE92: 0 | AF92: 0 | AG92: 2 | AS92: -5 | AT92: 58.64362554 | AU92: 29.16132279
A93: =A85+7 -> 50 | B93: =OFFSET(Calculations!AS$43,$A93,0)-U$3-B$10 -> 0 | C93: =OFFSET(Calculations!AT$43,$A93,0)-V$3-B$11 -> 61.38974319 | D93: =OFFSET(Calculations!AU$43,$A93,0)-W$3-B$12 -> 20.93867244 | E93: =B93*F$5+C93*F$4 -> 0 | F93: =C93*F$5-B93*F$4 -> 61.38974319 | G93: =D93 -> 20.93867244 | H93: 0 | I93: =F93*F$7+G93*F$6 -> 61.38974319 | J93: =G93*F$7-F93*F$6 -> 20.93867244 | K93: =H93*F$9+J93*F$8 -> 0 | L93: =I93 -> 61.38974319 | M93: =J93*F$9-H93*F$8 -> 20.93867244 | P93: =IF(MIN(L93:L99)+B$2+B$1>0,1,0) -> 1 | Q93: =IF(P93=1,K93*B$1/(B$1+B$2+L93),99999) -> 0 | R93: =M93*B$1/(B$1+B$2+L93) -> 5.866017022 | U93: =(2*U85+8*U95)/10 -> 0 | V93: 40.34977512 | W93: 16.77380518 | X93: -10 | Y93: 0 | Z93: 0 | AA93: 0 | AB93: 0.5686635282 | AC93: 0.6518892367 | AD93: -10 | AE93: 0 | AF93: 0 | AG93: 2 | AS93: 0 | AT93: 61.38974319 | AU93: 27.93867244
A94: 43 | B94: =OFFSET(Calculations!AS$43,$A94,0)-U$3-B$10 -> 0 | C94: =OFFSET(Calculations!AT$43,$A94,0)-V$3-B$11 -> 56.25093936 | D94: =OFFSET(Calculations!AU$43,$A94,0)-W$3-B$12 -> 11.99573542 | E94: 0 | F94: 56.25093936 | G94: 11.99573542 | H94: 0 | I94: 56.25093936 | J94: 11.99573542 | K94: 0 | L94: 56.25093936 | M94: 11.99573542 | Q94: =IF(P93=1,K94*B$1/(B$1+B$2+L94),99999) -> 0 | R94: 3.621302741 | U94: =(1*U85+9*U95)/10 -> 0 | V94: 41.05004041 | W94: 17.26366996 | X94: -10 | Y94: 0 | Z94: 0 | AA94: 0 | AB94: 0.554067945 | AC94: 0.6713190038 | AD94: -10 | AE94: 0 | AF94: 0 | AG94: 2 | AS94: 5 | AT94: 58.64362554 | AU94: 29.16132279
A95: 42 | B95: =OFFSET(Calculations!AS$43,$A95,0)-U$3-B$10 -> -5 | C95: =OFFSET(Calculations!AT$43,$A95,0)-V$3-B$11 -> 53.64362554 | D95: =OFFSET(Calculations!AU$43,$A95,0)-W$3-B$12 -> 13.50106875 | E95: -5 | F95: 53.64362554 | G95: 13.50106875 | H95: -5 | I95: 53.64362554 | J95: 13.50106875 | K95: -5 | L95: 53.64362554 | M95: 13.50106875 | Q95: =IF(P93=1,K95*B$1/(B$1+B$2+L95),99999) -> -1.571249267 | R95: 4.242708876 | T95: =T85+7 -> 35 | U95: =OFFSET(Calculations!AS$46,$T95,0) -> 0 | V95: =OFFSET(Calculations!AT$46,$T95,0) -> 41.7503057 | W95: =OFFSET(Calculations!AU$46,$T95,0) -> 17.75353474 | X95: =OFFSET(Calculations!AS$43,$T95,0)-OFFSET(Calculations!AS$45,$T95,0) -> -10 | Y95: =OFFSET(Calculations!AT$43,$T95,0)-OFFSET(Calculations!AT$45,$T95,0) -> 0 | Z95: =OFFSET(Calculations!AU$43,$T95,0)-OFFSET(Calculations!AU$45,$T95,0) -> 0 | AA95: 0 | AB95: 0.5394723618 | AC95: 0.6907487709 | AD95: -10 | AE95: 0 | AF95: 0 | AG95: 2 | AS95: 0 | AT95: 52.24880734 | AU95: 32.00847929
A96: 49 | B96: =OFFSET(Calculations!AS$43,$A96,0)-U$3-B$10 -> -5 | C96: =OFFSET(Calculations!AT$43,$A96,0)-V$3-B$11 -> 58.64362554 | D96: =OFFSET(Calculations!AU$43,$A96,0)-W$3-B$12 -> 22.16132279 | E96: -5 | F96: 58.64362554 | G96: 22.16132279 | H96: -5 | I96: 58.64362554 | J96: 22.16132279 | K96: -5 | L96: 58.64362554 | M96: 22.16132279 | Q96: =IF(P93=1,K96*B$1/(B$1+B$2+L96),99999) -> -1.456799509 | R96: 6.456920832 | U96: =(9*U95+U105)/10 -> 0 | V96: 42.3334199 | W96: 18.37828814 | X96: -10 | Y96: 0 | Z96: 0 | AA96: 0 | AB96: 0.5321987219 | AC96: 0.7017479992 | AD96: -10 | AE96: 0 | AF96: 0 | AG96: 2 | AS96: -7 | AT96: 58.64362554 | AU96: 29.16132279
A97: 51 | B97: =OFFSET(Calculations!AS$43,$A97,0)-U$3-B$10 -> 5 | C97: =OFFSET(Calculations!AT$43,$A97,0)-V$3-B$11 -> 58.64362554 | D97: =OFFSET(Calculations!AU$43,$A97,0)-W$3-B$12 -> 22.16132279 | E97: 5 | F97: 58.64362554 | G97: 22.16132279 | H97: 5 | I97: 58.64362554 | J97: 22.16132279 | K97: 5 | L97: 58.64362554 | M97: 22.16132279 | Q97: =IF(P93=1,K97*B$1/(B$1+B$2+L97),99999) -> 1.456799509 | R97: 6.456920832 | U97: =(8*U95+2*U105)/10 -> 0 | V97: 42.91653411 | W97: 19.00304154 | X97: -10 | Y97: 0 | Z97: 0 | AA97: 0 | AB97: 0.5249250819 | AC97: 0.7127472275 | AD97: -10 | AE97: 0 | AF97: 0 | AG97: 2 | AS97: 0 | AT97: 44.94044368 | AU97: 35.26237243
A98: 44 | B98: =OFFSET(Calculations!AS$43,$A98,0)-U$3-B$10 -> 5 | C98: =OFFSET(Calculations!AT$43,$A98,0)-V$3-B$11 -> 53.64362554 | D98: =OFFSET(Calculations!AU$43,$A98,0)-W$3-B$12 -> 13.50106875 | E98: 5 | F98: 53.64362554 | G98: 13.50106875 | H98: 5 | I98: 53.64362554 | J98: 13.50106875 | K98: 5 | L98: 53.64362554 | M98: 13.50106875 | Q98: =IF(P93=1,K98*B$1/(B$1+B$2+L98),99999) -> 1.571249267 | R98: 4.242708876 | U98: =(7*U95+3*U105)/10 -> 0 | V98: 43.49964831 | W98: 19.62779494 | X98: -10 | Y98: 0 | Z98: 0 | AA98: 0 | AB98: 0.517651442 | AC98: 0.7237464558 | AD98: -10 | AE98: 0 | AF98: 0 | AG98: 2 | AS98: 7 | AT98: 58.64362554 | AU98: 29.16132279
A99: 43 | B99: =OFFSET(Calculations!AS$43,$A99,0)-U$3-B$10 -> 0 | C99: =OFFSET(Calculations!AT$43,$A99,0)-V$3-B$11 -> 56.25093936 | D99: =OFFSET(Calculations!AU$43,$A99,0)-W$3-B$12 -> 11.99573542 | E99: 0 | F99: 56.25093936 | G99: 11.99573542 | H99: 0 | I99: 56.25093936 | J99: 11.99573542 | K99: 0 | L99: 56.25093936 | M99: 11.99573542 | Q99: =IF(P93=1,K99*B$1/(B$1+B$2+L99),99999) -> 0 | R99: 3.621302741 | U99: =(6*U95+4*U105)/10 -> 0 | V99: 44.08276251 | W99: 20.25254834 | X99: -10 | Y99: 0 | Z99: 0 | AA99: 0 | AB99: 0.510377802 | AC99: 0.7347456841 | AD99: -10 | AE99: 0 | AF99: 0 | AG99: 2 | AS99: -5 | AT99: 62.71099198 | AU99: 38.29677736
U100: =(5*U95+5*U105)/10 -> 0 | V100: 44.66587671 | W100: 20.87730174 | X100: -10 | Y100: 0 | Z100: 0 | AA100: 0 | AB100: 0.4993542046 | AC100: 0.7527951876 | AD100: -10 | AE100: 0 | AF100: 0 | AG100: 2 | AS100: 0 | AT100: 65.45406447 | AU100: 37.0754828
A101: =A93+7 -> 57 | B101: =OFFSET(Calculations!AS$43,$A101,0)-U$3-B$10 -> 0 | C101: =OFFSET(Calculations!AT$43,$A101,0)-V$3-B$11 -> 65.45406447 | D101: =OFFSET(Calculations!AU$43,$A101,0)-W$3-B$12 -> 30.0754828 | E101: =B101*F$5+C101*F$4 -> 0 | F101: =C101*F$5-B101*F$4 -> 65.45406447 | G101: =D101 -> 30.0754828 | H101: 0 | I101: =F101*F$7+G101*F$6 -> 65.45406447 | J101: =G101*F$7-F101*F$6 -> 30.0754828 | K101: =H101*F$9+J101*F$8 -> 0 | L101: =I101 -> 65.45406447 | M101: =J101*F$9-H101*F$8 -> 30.0754828 | N101: =IF(P101=1,K101*B$1/(B$1+B$2+L101),99999) -> 0 | O101: =M101*B$1/(B$1+B$2+L101) -> 7.971865536 | P101: =IF(MIN(L101:L107)+B$2+B$1>0,1,0) -> 1 | U101: =(4*U95+6*U105)/10 -> 0 | V101: 45.24899091 | W101: 21.50205515 | X101: -10 | Y101: 0 | Z101: 0 | AA101: 0 | AB101: 0.4883306072 | AC101: 0.7708446912 | AD101: -10 | AE101: 0 | AF101: 0 | AG101: 2 | AS101: 5 | AT101: 62.71099198 | AU101: 38.29677736
A102: 50 | B102: =OFFSET(Calculations!AS$43,$A102,0)-U$3-B$10 -> 0 | C102: =OFFSET(Calculations!AT$43,$A102,0)-V$3-B$11 -> 61.38974319 | D102: =OFFSET(Calculations!AU$43,$A102,0)-W$3-B$12 -> 20.93867244 | E102: 0 | F102: 61.38974319 | G102: 20.93867244 | H102: 0 | I102: 61.38974319 | J102: 20.93867244 | K102: 0 | L102: 61.38974319 | M102: 20.93867244 | N102: =IF(P101=1,K102*B$1/(B$1+B$2+L102),99999) -> 0 | O102: 5.866017022 | U102: =(3*U95+7*U105)/10 -> 0 | V102: 45.83210511 | W102: 22.12680855 | X102: -10 | Y102: 0 | Z102: 0 | AA102: 0 | AB102: 0.4773070098 | AC102: 0.7888941947 | AD102: -10 | AE102: 0 | AF102: 0 | AG102: 2 | AS102: 0 | AT102: 56.31617377 | AU102: 41.14393387
A103: 49 | B103: =OFFSET(Calculations!AS$43,$A103,0)-U$3-B$10 -> -5 | C103: =OFFSET(Calculations!AT$43,$A103,0)-V$3-B$11 -> 58.64362554 | D103: =OFFSET(Calculations!AU$43,$A103,0)-W$3-B$12 -> 22.16132279 | E103: -5 | F103: 58.64362554 | G103: 22.16132279 | H103: -5 | I103: 58.64362554 | J103: 22.16132279 | K103: -5 | L103: 58.64362554 | M103: 22.16132279 | N103: =IF(P101=1,K103*B$1/(B$1+B$2+L103),99999) -> -1.456799509 | O103: 6.456920832 | U103: =(2*U95+8*U105)/10 -> 0 | V103: 46.41521932 | W103: 22.75156195 | X103: -10 | Y103: 0 | Z103: 0 | AA103: 0 | AB103: 0.4662834124 | AC103: 0.8069436982 | AD103: -10 | AE103: 0 | AF103: 0 | AG103: 2 | AS103: -7 | AT103: 62.71099198 | AU103: 38.29677736
A104: 56 | B104: =OFFSET(Calculations!AS$43,$A104,0)-U$3-B$10 -> -5 | C104: =OFFSET(Calculations!AT$43,$A104,0)-V$3-B$11 -> 62.71099198 | D104: =OFFSET(Calculations!AU$43,$A104,0)-W$3-B$12 -> 31.29677736 | E104: -5 | F104: 62.71099198 | G104: 31.29677736 | H104: -5 | I104: 62.71099198 | J104: 31.29677736 | K104: -5 | L104: 62.71099198 | M104: 31.29677736 | N104: =IF(P101=1,K104*B$1/(B$1+B$2+L104),99999) -> -1.375307877 | O104: 8.608540886 | U104: =(1*U95+9*U105)/10 -> 0 | V104: 46.99833352 | W104: 23.37631535 | X104: -10 | Y104: 0 | Z104: 0 | AA104: 0 | AB104: 0.455259815 | AC104: 0.8249932018 | AD104: -10 | AE104: 0 | AF104: 0 | AG104: 2 | AS104: 0 | AT104: 49.00781011 | AU104: 44.39782701
A105: 58 | B105: =OFFSET(Calculations!AS$43,$A105,0)-U$3-B$10 -> 5 | C105: =OFFSET(Calculations!AT$43,$A105,0)-V$3-B$11 -> 62.71099198 | D105: =OFFSET(Calculations!AU$43,$A105,0)-W$3-B$12 -> 31.29677736 | E105: 5 | F105: 62.71099198 | G105: 31.29677736 | H105: 5 | I105: 62.71099198 | J105: 31.29677736 | K105: 5 | L105: 62.71099198 | M105: 31.29677736 | N105: =IF(P101=1,K105*B$1/(B$1+B$2+L105),99999) -> 1.375307877 | O105: 8.608540886 | T105: =T95+7 -> 42 | U105: =OFFSET(Calculations!AS$46,$T105,0) -> 0 | V105: =OFFSET(Calculations!AT$46,$T105,0) -> 47.58144772 | W105: =OFFSET(Calculations!AU$46,$T105,0) -> 24.00106875 | X105: =OFFSET(Calculations!AS$43,$T105,0)-OFFSET(Calculations!AS$45,$T105,0) -> -10 | Y105: =OFFSET(Calculations!AT$43,$T105,0)-OFFSET(Calculations!AT$45,$T105,0) -> 0 | Z105: =OFFSET(Calculations!AU$43,$T105,0)-OFFSET(Calculations!AU$45,$T105,0) -> 0 | AA105: 0 | AB105: 0.4442362176 | AC105: 0.8430427053 | AD105: -10 | AE105: 0 | AF105: 0 | AG105: 2 | AS105: 7 | AT105: 62.71099198 | AU105: 38.29677736
A106: 51 | B106: =OFFSET(Calculations!AS$43,$A106,0)-U$3-B$10 -> 5 | C106: =OFFSET(Calculations!AT$43,$A106,0)-V$3-B$11 -> 58.64362554 | D106: =OFFSET(Calculations!AU$43,$A106,0)-W$3-B$12 -> 22.16132279 | E106: 5 | F106: 58.64362554 | G106: 22.16132279 | H106: 5 | I106: 58.64362554 | J106: 22.16132279 | K106: 5 | L106: 58.64362554 | M106: 22.16132279 | N106: =IF(P101=1,K106*B$1/(B$1+B$2+L106),99999) -> 1.456799509 | O106: 6.456920832 | U106: =(9*U105+U115)/10 -> 0 | V106: 48.04818368 | W106: 24.8018098 | X106: -10 | Y106: 0 | Z106: 0 | AA106: 0 | AB106: 0.4404862601 | AC106: 0.8500929806 | AD106: -10 | AE106: 0 | AF106: 0 | AG106: 2 | AS106: -5 | AT106: 66.77835841 | AU106: 47.43223194
A107: 50 | B107: =OFFSET(Calculations!AS$43,$A107,0)-U$3-B$10 -> 0 | C107: =OFFSET(Calculations!AT$43,$A107,0)-V$3-B$11 -> 61.38974319 | D107: =OFFSET(Calculations!AU$43,$A107,0)-W$3-B$12 -> 20.93867244 | E107: 0 | F107: 61.38974319 | G107: 20.93867244 | H107: 0 | I107: 61.38974319 | J107: 20.93867244 | K107: 0 | L107: 61.38974319 | M107: 20.93867244 | N107: =IF(P101=1,K107*B$1/(B$1+B$2+L107),99999) -> 0 | O107: 5.866017022 | U107: =(8*U105+2*U115)/10 -> 0 | V107: 48.51491964 | W107: 25.60255086 | X107: -10 | Y107: 0 | Z107: 0 | AA107: 0 | AB107: 0.4367363027 | AC107: 0.8571432558 | AD107: -10 | AE107: 0 | AF107: 0 | AG107: 2 | AS107: 0 | AT107: 69.51960381 | AU107: 46.21175085
U108: =(7*U105+3*U115)/10 -> 0 | V108: 48.98165561 | W108: 26.40329191 | X108: -10 | Y108: 0 | Z108: 0 | AA108: 0 | AB108: 0.4329863452 | AC108: 0.864193531 | AD108: -10 | AE108: 0 | AF108: 0 | AG108: 2 | AS108: 5 | AT108: 66.77835841 | AU108: 47.43223194
A109: =A101+7 -> 64 | B109: =OFFSET(Calculations!AS$43,$A109,0)-U$3-B$10 -> 0 | C109: =OFFSET(Calculations!AT$43,$A109,0)-V$3-B$11 -> 69.51960381 | D109: =OFFSET(Calculations!AU$43,$A109,0)-W$3-B$12 -> 39.21175085 | E109: =B109*F$5+C109*F$4 -> 0 | F109: =C109*F$5-B109*F$4 -> 69.51960381 | G109: =D109 -> 39.21175085 | H109: 0 | I109: =F109*F$7+G109*F$6 -> 69.51960381 | J109: =G109*F$7-F109*F$6 -> 39.21175085 | K109: =H109*F$9+J109*F$8 -> 0 | L109: =I109 -> 69.51960381 | M109: =J109*F$9-H109*F$8 -> 39.21175085 | N109: =IF(P109=1,K109*B$1/(B$1+B$2+L109),99999) -> 0 | O109: =M109*B$1/(B$1+B$2+L109) -> 9.862159511 | P109: =IF(MIN(L109:L115)+B$2+B$1>0,1,0) -> 1 | U109: =(6*U105+4*U115)/10 -> 0 | V109: 49.44839157 | W109: 27.20403297 | X109: -10 | Y109: 0 | Z109: 0 | AA109: =(SUM(U110:U125)-SUM(U109:U124))/16 -> 0 | AB109: =(SUM(V110:V125)-SUM(V109:V124))/16 -> 0.4292363878 | AC109: =(SUM(W110:W125)-SUM(W109:W124))/16 -> 0.8712438063 | AD109: =SUM(X109:X124)/16 -> -10 | AE109: =SUM(Y109:Y124)/16 -> 0 | AF109: =SUM(Z109:Z124)/16 -> 0 | AG109: 2 | AS109: 0 | AT109: 60.3835402 | AU109: 50.27938844
A110: 57 | B110: =OFFSET(Calculations!AS$43,$A110,0)-U$3-B$10 -> 0 | C110: =OFFSET(Calculations!AT$43,$A110,0)-V$3-B$11 -> 65.45406447 | D110: =OFFSET(Calculations!AU$43,$A110,0)-W$3-B$12 -> 30.0754828 | E110: 0 | F110: 65.45406447 | G110: 30.0754828 | H110: 0 | I110: 65.45406447 | J110: 30.0754828 | K110: 0 | L110: 65.45406447 | M110: 30.0754828 | N110: =IF(P109=1,K110*B$1/(B$1+B$2+L110),99999) -> 0 | O110: 7.971865536 | U110: =(5*U105+5*U115)/10 -> 0 | V110: 49.91512753 | W110: 28.00477402 | X110: -10 | Y110: 0 | Z110: 0 | AA110: 0 | AB110: 0.4254864303 | AC110: 0.8782940815 | AD110: -10 | AE110: 0 | AF110: 0 | AG110: 2 | AS110: -7 | AT110: 66.77835841 | AU110: 47.43223194
A111: 56 | B111: =OFFSET(Calculations!AS$43,$A111,0)-U$3-B$10 -> -5 | C111: =OFFSET(Calculations!AT$43,$A111,0)-V$3-B$11 -> 62.71099198 | D111: =OFFSET(Calculations!AU$43,$A111,0)-W$3-B$12 -> 31.29677736 | E111: -5 | F111: 62.71099198 | G111: 31.29677736 | H111: -5 | I111: 62.71099198 | J111: 31.29677736 | K111: -5 | L111: 62.71099198 | M111: 31.29677736 | N111: =IF(P109=1,K111*B$1/(B$1+B$2+L111),99999) -> -1.375307877 | O111: 8.608540886 | U111: =(4*U105+6*U115)/10 -> 0 | V111: 50.38186349 | W111: 28.80551507 | X111: -10 | Y111: 0 | Z111: 0 | AA111: 0 | AB111: 0.4217364729 | AC111: 0.8853443567 | AD111: -10 | AE111: 0 | AF111: 0 | AG111: =AG110 -> 2 | AS111: 0 | AT111: 53.07517654 | AU111: 53.53328159
A112: 63 | B112: =OFFSET(Calculations!AS$43,$A112,0)-U$3-B$10 -> -5 | C112: =OFFSET(Calculations!AT$43,$A112,0)-V$3-B$11 -> 66.77835841 | D112: =OFFSET(Calculations!AU$43,$A112,0)-W$3-B$12 -> 40.43223194 | E112: -5 | F112: 66.77835841 | G112: 40.43223194 | H112: -5 | I112: 66.77835841 | J112: 40.43223194 | K112: -5 | L112: 66.77835841 | M112: 40.43223194 | N112: =IF(P109=1,K112*B$1/(B$1+B$2+L112),99999) -> -1.302450353 | O112: 10.53219495 | U112: =(3*U105+7*U115)/10 -> 0 | V112: 50.84859945 | W112: 29.60625613 | X112: -10 | Y112: 0 | Z112: 0 | AA112: 0 | AB112: 0.4179865154 | AC112: 0.8923946319 | AD112: -10 | AE112: 0 | AF112: 0 | AG112: 2 | AS112: 7 | AT112: 66.77835841 | AU112: 47.43223194
A113: 65 | B113: =OFFSET(Calculations!AS$43,$A113,0)-U$3-B$10 -> 5 | C113: =OFFSET(Calculations!AT$43,$A113,0)-V$3-B$11 -> 66.77835841 | D113: =OFFSET(Calculations!AU$43,$A113,0)-W$3-B$12 -> 40.43223194 | E113: 5 | F113: 66.77835841 | G113: 40.43223194 | H113: 5 | I113: 66.77835841 | J113: 40.43223194 | K113: 5 | L113: 66.77835841 | M113: 40.43223194 | N113: =IF(P109=1,K113*B$1/(B$1+B$2+L113),99999) -> 1.302450353 | O113: 10.53219495 | U113: =(2*U105+8*U115)/10 -> 0 | V113: 51.31533542 | W113: 30.40699718 | X113: -10 | Y113: 0 | Z113: 0 | AA113: 0 | AB113: 0.414236558 | AC113: 0.8994449072 | AD113: -10 | AE113: 0 | AF113: 0 | AG113: 2 | AS113: -5 | AT113: 70.84572484 | AU113: 56.56768652
A114: 58 | B114: =OFFSET(Calculations!AS$43,$A114,0)-U$3-B$10 -> 5 | C114: =OFFSET(Calculations!AT$43,$A114,0)-V$3-B$11 -> 62.71099198 | D114: =OFFSET(Calculations!AU$43,$A114,0)-W$3-B$12 -> 31.29677736 | E114: 5 | F114: 62.71099198 | G114: 31.29677736 | H114: 5 | I114: 62.71099198 | J114: 31.29677736 | K114: 5 | L114: 62.71099198 | M114: 31.29677736 | N114: =IF(P109=1,K114*B$1/(B$1+B$2+L114),99999) -> 1.375307877 | O114: 8.608540886 | U114: =(1*U105+9*U115)/10 -> 0 | V114: 51.78207138 | W114: 31.20773823 | X114: -10 | Y114: 0 | Z114: 0 | AA114: 0 | AB114: 0.4104866005 | AC114: 0.9064951824 | AD114: -10 | AE114: 0 | AF114: 0 | AG114: 2 | AS114: 0 | AT114: 73.58636121 | AU114: 55.34747659
A115: 57 | B115: =OFFSET(Calculations!AS$43,$A115,0)-U$3-B$10 -> 0 | C115: =OFFSET(Calculations!AT$43,$A115,0)-V$3-B$11 -> 65.45406447 | D115: =OFFSET(Calculations!AU$43,$A115,0)-W$3-B$12 -> 30.0754828 | E115: 0 | F115: 65.45406447 | G115: 30.0754828 | H115: 0 | I115: 65.45406447 | J115: 30.0754828 | K115: 0 | L115: 65.45406447 | M115: 30.0754828 | N115: =IF(P109=1,K115*B$1/(B$1+B$2+L115),99999) -> 0 | O115: 7.971865536 | T115: =T105+7 -> 49 | U115: =OFFSET(Calculations!AS$46,$T115,0) -> 0 | V115: =OFFSET(Calculations!AT$46,$T115,0) -> 52.24880734 | W115: =OFFSET(Calculations!AU$46,$T115,0) -> 32.00847929 | X115: =OFFSET(Calculations!AS$43,$T115,0)-OFFSET(Calculations!AS$45,$T115,0) -> -10 | Y115: =OFFSET(Calculations!AT$43,$T115,0)-OFFSET(Calculations!AT$45,$T115,0) -> 0 | Z115: =OFFSET(Calculations!AU$43,$T115,0)-OFFSET(Calculations!AU$45,$T115,0) -> 0 | AA115: 0 | AB115: 0.4067366431 | AC115: 0.9135454576 | AD115: -10 | AE115: 0 | AF115: 0 | AG115: 2 | AS115: 5 | AT115: 70.84572484 | AU115: 56.56768652
U116: =(9*U115+U125)/10 -> 0 | V116: 52.65554398 | W116: 32.92202475 | X116: -10 | Y116: 0 | Z116: 0 | AA116: 0 | AB116: 0.4067366431 | AC116: 0.9135454576 | AD116: -10 | AE116: 0 | AF116: 0 | AG116: 2 | AS116: 0 | AT116: 64.45090663 | AU116: 59.41484302
A117: =A109+7 -> 71 | B117: =OFFSET(Calculations!AS$43,$A117,0)-U$3-B$10 -> 0 | C117: =OFFSET(Calculations!AT$43,$A117,0)-V$3-B$11 -> 73.58636121 | D117: =OFFSET(Calculations!AU$43,$A117,0)-W$3-B$12 -> 48.34747659 | E117: =B117*F$5+C117*F$4 -> 0 | F117: =C117*F$5-B117*F$4 -> 73.58636121 | G117: =D117 -> 48.34747659 | H117: 0 | I117: =F117*F$7+G117*F$6 -> 73.58636121 | J117: =G117*F$7-F117*F$6 -> 48.34747659 | K117: =H117*F$9+J117*F$8 -> 0 | L117: =I117 -> 73.58636121 | M117: =J117*F$9-H117*F$8 -> 48.34747659 | N117: =IF(P117=1,K117*B$1/(B$1+B$2+L117),99999) -> 0 | O117: =M117*B$1/(B$1+B$2+L117) -> 11.56826925 | P117: =IF(MIN(L117:L123)+B$2+B$1>0,1,0) -> 1 | U117: =(8*U115+2*U125)/10 -> 0 | V117: 53.06228063 | W117: 33.8355702 | X117: -10 | Y117: 0 | Z117: 0 | AA117: 0 | AB117: 0.4067366431 | AC117: 0.9135454576 | AD117: -10 | AE117: 0 | AF117: 0 | AG117: 2 | AS117: -7 | AT117: 70.84572484 | AU117: 56.56768652
A118: 64 | B118: =OFFSET(Calculations!AS$43,$A118,0)-U$3-B$10 -> 0 | C118: =OFFSET(Calculations!AT$43,$A118,0)-V$3-B$11 -> 69.51960381 | D118: =OFFSET(Calculations!AU$43,$A118,0)-W$3-B$12 -> 39.21175085 | E118: 0 | F118: 69.51960381 | G118: 39.21175085 | H118: 0 | I118: 69.51960381 | J118: 39.21175085 | K118: 0 | L118: 69.51960381 | M118: 39.21175085 | N118: =IF(P117=1,K118*B$1/(B$1+B$2+L118),99999) -> 0 | O118: 9.862159511 | U118: =(7*U115+3*U125)/10 -> 0 | V118: 53.46901727 | W118: 34.74911566 | X118: -10 | Y118: 0 | Z118: 0 | AA118: 0 | AB118: 0.4067366431 | AC118: 0.9135454576 | AD118: -10 | AE118: 0 | AF118: 0 | AG118: 2 | AS118: 0 | AT118: 57.14254297 | AU118: 62.66873616
A119: 63 | B119: =OFFSET(Calculations!AS$43,$A119,0)-U$3-B$10 -> -5 | C119: =OFFSET(Calculations!AT$43,$A119,0)-V$3-B$11 -> 66.77835841 | D119: =OFFSET(Calculations!AU$43,$A119,0)-W$3-B$12 -> 40.43223194 | E119: -5 | F119: 66.77835841 | G119: 40.43223194 | H119: -5 | I119: 66.77835841 | J119: 40.43223194 | K119: -5 | L119: 66.77835841 | M119: 40.43223194 | N119: =IF(P117=1,K119*B$1/(B$1+B$2+L119),99999) -> -1.302450353 | O119: 10.53219495 | U119: =(6*U115+4*U125)/10 -> 0 | V119: 53.87575391 | W119: 35.66266112 | X119: -10 | Y119: 0 | Z119: 0 | AA119: 0 | AB119: 0.4067366431 | AC119: 0.9135454576 | AD119: -10 | AE119: 0 | AF119: 0 | AG119: 2 | AS119: 7 | AT119: 70.84572484 | AU119: 56.56768652
A120: 70 | B120: =OFFSET(Calculations!AS$43,$A120,0)-U$3-B$10 -> -5 | C120: =OFFSET(Calculations!AT$43,$A120,0)-V$3-B$11 -> 70.84572484 | D120: =OFFSET(Calculations!AU$43,$A120,0)-W$3-B$12 -> 49.56768652 | E120: -5 | F120: 70.84572484 | G120: 49.56768652 | H120: -5 | I120: 70.84572484 | J120: 49.56768652 | K120: -5 | L120: 70.84572484 | M120: 49.56768652 | N120: =IF(P117=1,K120*B$1/(B$1+B$2+L120),99999) -> -1.236923785 | O120: 12.26229009 | U120: =(5*U115+5*U125)/10 -> 0 | V120: 54.28249056 | W120: 36.57620658 | X120: -10 | Y120: 0 | Z120: 0 | AA120: 0 | AB120: 0.4067366431 | AC120: 0.9135454576 | AD120: -10 | AE120: 0 | AF120: 0 | AG120: 2 | AS120: -5 | AT120: 74.91309127 | AU120: 65.70314109
A121: 72 | B121: =OFFSET(Calculations!AS$43,$A121,0)-U$3-B$10 -> 5 | C121: =OFFSET(Calculations!AT$43,$A121,0)-V$3-B$11 -> 70.84572484 | D121: =OFFSET(Calculations!AU$43,$A121,0)-W$3-B$12 -> 49.56768652 | E121: 5 | F121: 70.84572484 | G121: 49.56768652 | H121: 5 | I121: 70.84572484 | J121: 49.56768652 | K121: 5 | L121: 70.84572484 | M121: 49.56768652 | N121: =IF(P117=1,K121*B$1/(B$1+B$2+L121),99999) -> 1.236923785 | O121: 12.26229009 | U121: =(4*U115+6*U125)/10 -> 0 | V121: 54.6892272 | W121: 37.48975203 | X121: -10 | Y121: 0 | Z121: 0 | AA121: 0 | AB121: 0.4067366431 | AC121: 0.9135454576 | AD121: -10 | AE121: 0 | AF121: 0 | AG121: 2 | AS121: 0 | AT121: 77.65433667 | AU121: 64.48266001
A122: 65 | B122: =OFFSET(Calculations!AS$43,$A122,0)-U$3-B$10 -> 5 | C122: =OFFSET(Calculations!AT$43,$A122,0)-V$3-B$11 -> 66.77835841 | D122: =OFFSET(Calculations!AU$43,$A122,0)-W$3-B$12 -> 40.43223194 | E122: 5 | F122: 66.77835841 | G122: 40.43223194 | H122: 5 | I122: 66.77835841 | J122: 40.43223194 | K122: 5 | L122: 66.77835841 | M122: 40.43223194 | N122: =IF(P117=1,K122*B$1/(B$1+B$2+L122),99999) -> 1.302450353 | O122: 10.53219495 | U122: =(3*U115+7*U125)/10 -> 0 | V122: 55.09596384 | W122: 38.40329749 | X122: -10 | Y122: 0 | Z122: 0 | AA122: 0 | AB122: 0.4067366431 | AC122: 0.9135454576 | AD122: -10 | AE122: 0 | AF122: 0 | AG122: 2 | AS122: 5 | AT122: 74.91309127 | AU122: 65.70314109
A123: 64 | B123: =OFFSET(Calculations!AS$43,$A123,0)-U$3-B$10 -> 0 | C123: =OFFSET(Calculations!AT$43,$A123,0)-V$3-B$11 -> 69.51960381 | D123: =OFFSET(Calculations!AU$43,$A123,0)-W$3-B$12 -> 39.21175085 | E123: 0 | F123: 69.51960381 | G123: 39.21175085 | H123: 0 | I123: 69.51960381 | J123: 39.21175085 | K123: 0 | L123: 69.51960381 | M123: 39.21175085 | N123: =IF(P117=1,K123*B$1/(B$1+B$2+L123),99999) -> 0 | O123: 9.862159511 | U123: =(2*U115+8*U125)/10 -> 0 | V123: 55.50270049 | W123: 39.31684295 | X123: -10 | Y123: 0 | Z123: 0 | AA123: 0 | AB123: 0.4067366431 | AC123: 0.9135454576 | AD123: -10 | AE123: 0 | AF123: 0 | AG123: 2 | AS123: 0 | AT123: 68.51827306 | AU123: 68.55029759
U124: =(1*U115+9*U125)/10 -> 0 | V124: 55.90943713 | W124: 40.23038841 | X124: -10 | Y124: 0 | Z124: 0 | AA124: 0 | AB124: 0.4067366431 | AC124: 0.9135454576 | AD124: -10 | AE124: 0 | AF124: 0 | AG124: 2 | AS124: -7 | AT124: 74.91309127 | AU124: 65.70314109
A125: =A117+7 -> 78 | B125: =OFFSET(Calculations!AS$43,$A125,0)-U$3-B$10 -> 0 | C125: =OFFSET(Calculations!AT$43,$A125,0)-V$3-B$11 -> 77.65433667 | D125: =OFFSET(Calculations!AU$43,$A125,0)-W$3-B$12 -> 57.48266001 | E125: =B125*F$5+C125*F$4 -> 0 | F125: =C125*F$5-B125*F$4 -> 77.65433667 | G125: =D125 -> 57.48266001 | H125: 0 | I125: =F125*F$7+G125*F$6 -> 77.65433667 | J125: =G125*F$7-F125*F$6 -> 57.48266001 | K125: =H125*F$9+J125*F$8 -> 0 | L125: =I125 -> 77.65433667 | M125: =J125*F$9-H125*F$8 -> 57.48266001 | N125: =IF(P125=1,K125*B$1/(B$1+B$2+L125),99999) -> 0 | O125: =M125*B$1/(B$1+B$2+L125) -> 13.11575951 | P125: =IF(MIN(L125:L131)+B$2+B$1>0,1,0) -> 1 | T125: =T115+7 -> 56 | U125: =OFFSET(Calculations!AS$46,$T125,0) -> 0 | V125: =OFFSET(Calculations!AT$46,$T125,0) -> 56.31617377 | W125: =OFFSET(Calculations!AU$46,$T125,0) -> 41.14393387 | X125: =OFFSET(Calculations!AS$43,$T125,0)-OFFSET(Calculations!AS$45,$T125,0) -> -10 | Y125: =OFFSET(Calculations!AT$43,$T125,0)-OFFSET(Calculations!AT$45,$T125,0) -> 0 | Z125: =OFFSET(Calculations!AU$43,$T125,0)-OFFSET(Calculations!AU$45,$T125,0) -> 0 | AA125: 0 | AB125: 0.4067366431 | AC125: 0.9135454576 | AD125: -10 | AE125: 0 | AF125: 0 | AG125: 2 | AS125: 0 | AT125: 61.2099094 | AU125: 71.80419074
A126: 71 | B126: =OFFSET(Calculations!AS$43,$A126,0)-U$3-B$10 -> 0 | C126: =OFFSET(Calculations!AT$43,$A126,0)-V$3-B$11 -> 73.58636121 | D126: =OFFSET(Calculations!AU$43,$A126,0)-W$3-B$12 -> 48.34747659 | E126: 0 | F126: 73.58636121 | G126: 48.34747659 | H126: 0 | I126: 73.58636121 | J126: 48.34747659 | K126: 0 | L126: 73.58636121 | M126: 48.34747659 | N126: =IF(P125=1,K126*B$1/(B$1+B$2+L126),99999) -> 0 | O126: 11.56826925 | U126: =(9*U125+U135)/10 -> 0 | V126: 56.72291042 | W126: 42.05747932 | X126: -10 | Y126: 0 | Z126: 0 | AA126: 0 | AB126: 0.4067366431 | AC126: 0.9135454576 | AD126: -10 | AE126: 0 | AF126: 0 | AG126: 2 | AS126: 7 | AT126: 74.91309127 | AU126: 65.70314109
A127: 70 | B127: =OFFSET(Calculations!AS$43,$A127,0)-U$3-B$10 -> -5 | C127: =OFFSET(Calculations!AT$43,$A127,0)-V$3-B$11 -> 70.84572484 | D127: =OFFSET(Calculations!AU$43,$A127,0)-W$3-B$12 -> 49.56768652 | E127: -5 | F127: 70.84572484 | G127: 49.56768652 | H127: -5 | I127: 70.84572484 | J127: 49.56768652 | K127: -5 | L127: 70.84572484 | M127: 49.56768652 | N127: =IF(P125=1,K127*B$1/(B$1+B$2+L127),99999) -> -1.236923785 | O127: 12.26229009 | U127: =(8*U125+2*U135)/10 -> 0 | V127: 57.12964706 | W127: 42.97102478 | X127: -10 | Y127: 0 | Z127: 0 | AA127: 0 | AB127: 0.4067366431 | AC127: 0.9135454576 | AD127: -10 | AE127: 0 | AF127: 0 | AG127: 2 | AS127: -5 | AT127: 78.9804577 | AU127: 74.83859567
A128: 77 | B128: =OFFSET(Calculations!AS$43,$A128,0)-U$3-B$10 -> -5 | C128: =OFFSET(Calculations!AT$43,$A128,0)-V$3-B$11 -> 74.91309127 | D128: =OFFSET(Calculations!AU$43,$A128,0)-W$3-B$12 -> 58.70314109 | E128: -5 | F128: 74.91309127 | G128: 58.70314109 | H128: -5 | I128: 74.91309127 | J128: 58.70314109 | K128: -5 | L128: 74.91309127 | M128: 58.70314109 | N128: =IF(P125=1,K128*B$1/(B$1+B$2+L128),99999) -> -1.177674708 | O128: 13.82664091 | U128: =(7*U125+3*U135)/10 -> 0 | V128: 57.5363837 | W128: 43.88457024 | X128: -10 | Y128: 0 | Z128: 0 | AA128: 0 | AB128: 0.4067366431 | AC128: 0.9135454576 | AD128: -10 | AE128: 0 | AF128: 0 | AG128: 2 | AS128: 0 | AT128: 81.72353019 | AU128: 73.61730111
A129: 79 | B129: =OFFSET(Calculations!AS$43,$A129,0)-U$3-B$10 -> 5 | C129: =OFFSET(Calculations!AT$43,$A129,0)-V$3-B$11 -> 74.91309127 | D129: =OFFSET(Calculations!AU$43,$A129,0)-W$3-B$12 -> 58.70314109 | E129: 5 | F129: 74.91309127 | G129: 58.70314109 | H129: 5 | I129: 74.91309127 | J129: 58.70314109 | K129: 5 | L129: 74.91309127 | M129: 58.70314109 | N129: =IF(P125=1,K129*B$1/(B$1+B$2+L129),99999) -> 1.177674708 | O129: 13.82664091 | U129: =(6*U125+4*U135)/10 -> 0 | V129: 57.94312034 | W129: 44.7981157 | X129: -10 | Y129: 0 | Z129: 0 | AA129: 0 | AB129: 0.4067366431 | AC129: 0.9135454576 | AD129: -10 | AE129: 0 | AF129: 0 | AG129: 2 | AS129: 5 | AT129: 78.9804577 | AU129: 74.83859567
A130: 72 | B130: =OFFSET(Calculations!AS$43,$A130,0)-U$3-B$10 -> 5 | C130: =OFFSET(Calculations!AT$43,$A130,0)-V$3-B$11 -> 70.84572484 | D130: =OFFSET(Calculations!AU$43,$A130,0)-W$3-B$12 -> 49.56768652 | E130: 5 | F130: 70.84572484 | G130: 49.56768652 | H130: 5 | I130: 70.84572484 | J130: 49.56768652 | K130: 5 | L130: 70.84572484 | M130: 49.56768652 | N130: =IF(P125=1,K130*B$1/(B$1+B$2+L130),99999) -> 1.236923785 | O130: 12.26229009 | U130: =(5*U125+5*U135)/10 -> 0 | V130: 58.34985699 | W130: 45.71166115 | X130: -10 | Y130: 0 | Z130: 0 | AA130: 0 | AB130: 0.4067366431 | AC130: 0.9135454576 | AD130: -10 | AE130: 0 | AF130: 0 | AG130: 2 | AS130: 0 | AT130: 72.5856395 | AU130: 77.68575217
A131: 71 | B131: =OFFSET(Calculations!AS$43,$A131,0)-U$3-B$10 -> 0 | C131: =OFFSET(Calculations!AT$43,$A131,0)-V$3-B$11 -> 73.58636121 | D131: =OFFSET(Calculations!AU$43,$A131,0)-W$3-B$12 -> 48.34747659 | E131: 0 | F131: 73.58636121 | G131: 48.34747659 | H131: 0 | I131: 73.58636121 | J131: 48.34747659 | K131: 0 | L131: 73.58636121 | M131: 48.34747659 | N131: =IF(P125=1,K131*B$1/(B$1+B$2+L131),99999) -> 0 | O131: 11.56826925 | U131: =(4*U125+6*U135)/10 -> 0 | V131: 58.75659363 | W131: 46.62520661 | X131: -10 | Y131: 0 | Z131: 0 | AA131: 0 | AB131: 0.4067366431 | AC131: 0.9135454576 | AD131: -10 | AE131: 0 | AF131: 0 | AG131: 2 | AS131: -7 | AT131: 78.9804577 | AU131: 74.83859567
U132: =(3*U125+7*U135)/10 -> 0 | V132: 59.16333027 | W132: 47.53875207 | X132: -10 | Y132: 0 | Z132: 0 | AA132: 0 | AB132: 0.4067366431 | AC132: 0.9135454576 | AD132: -10 | AE132: 0 | AF132: 0 | AG132: 2 | AS132: 0 | AT132: 65.27727583 | AU132: 80.93964532
A133: =A125+7 -> 85 | B133: =OFFSET(Calculations!AS$43,$A133,0)-U$3-B$10 -> 0 | C133: =OFFSET(Calculations!AT$43,$A133,0)-V$3-B$11 -> 81.72353019 | D133: =OFFSET(Calculations!AU$43,$A133,0)-W$3-B$12 -> 66.61730111 | E133: =B133*F$5+C133*F$4 -> 0 | F133: =C133*F$5-B133*F$4 -> 81.72353019 | G133: =D133 -> 66.61730111 | H133: 0 | I133: =F133*F$7+G133*F$6 -> 81.72353019 | J133: =G133*F$7-F133*F$6 -> 66.61730111 | K133: =H133*F$9+J133*F$8 -> 0 | L133: =I133 -> 81.72353019 | M133: =J133*F$9-H133*F$8 -> 66.61730111 | N133: =IF(P133=1,K133*B$1/(B$1+B$2+L133),99999) -> 0 | O133: =M133*B$1/(B$1+B$2+L133) -> 14.52567318 | P133: =IF(MIN(L133:L139)+B$2+B$1>0,1,0) -> 1 | U133: =(2*U125+8*U135)/10 -> 0 | V133: 59.57006692 | W133: 48.45229753 | X133: -10 | Y133: 0 | Z133: 0 | AA133: 0 | AB133: 0.4067366431 | AC133: 0.9135454576 | AD133: -10 | AE133: 0 | AF133: 0 | AG133: 2 | AS133: 7 | AT133: 78.9804577 | AU133: 74.83859567
A134: 78 | B134: =OFFSET(Calculations!AS$43,$A134,0)-U$3-B$10 -> 0 | C134: =OFFSET(Calculations!AT$43,$A134,0)-V$3-B$11 -> 77.65433667 | D134: =OFFSET(Calculations!AU$43,$A134,0)-W$3-B$12 -> 57.48266001 | E134: 0 | F134: 77.65433667 | G134: 57.48266001 | H134: 0 | I134: 77.65433667 | J134: 57.48266001 | K134: 0 | L134: 77.65433667 | M134: 57.48266001 | N134: =IF(P133=1,K134*B$1/(B$1+B$2+L134),99999) -> 0 | O134: 13.11575951 | U134: =(1*U125+9*U135)/10 -> 0 | V134: 59.97680356 | W134: 49.36584298 | X134: -10 | Y134: 0 | Z134: 0 | AA134: 0 | AB134: 0.4067366431 | AC134: 0.9135454576 | AD134: -10 | AE134: 0 | AF134: 0 | AG134: 2 | AS134: -5 | AT134: 83.04782413 | AU134: 83.97405025
A135: 77 | B135: =OFFSET(Calculations!AS$43,$A135,0)-U$3-B$10 -> -5 | C135: =OFFSET(Calculations!AT$43,$A135,0)-V$3-B$11 -> 74.91309127 | D135: =OFFSET(Calculations!AU$43,$A135,0)-W$3-B$12 -> 58.70314109 | E135: -5 | F135: 74.91309127 | G135: 58.70314109 | H135: -5 | I135: 74.91309127 | J135: 58.70314109 | K135: -5 | L135: 74.91309127 | M135: 58.70314109 | N135: =IF(P133=1,K135*B$1/(B$1+B$2+L135),99999) -> -1.177674708 | O135: 13.82664091 | T135: =T125+7 -> 63 | U135: =OFFSET(Calculations!AS$46,$T135,0) -> 0 | V135: =OFFSET(Calculations!AT$46,$T135,0) -> 60.3835402 | W135: =OFFSET(Calculations!AU$46,$T135,0) -> 50.27938844 | X135: =OFFSET(Calculations!AS$43,$T135,0)-OFFSET(Calculations!AS$45,$T135,0) -> -10 | Y135: =OFFSET(Calculations!AT$43,$T135,0)-OFFSET(Calculations!AT$45,$T135,0) -> 0 | Z135: =OFFSET(Calculations!AU$43,$T135,0)-OFFSET(Calculations!AU$45,$T135,0) -> 0 | AA135: 0 | AB135: 0.4067366431 | AC135: 0.9135454576 | AD135: -10 | AE135: 0 | AF135: 0 | AG135: 2 | AS135: 0 | AT135: 85.79394178 | AU135: 82.7513999
A136: 84 | B136: =OFFSET(Calculations!AS$43,$A136,0)-U$3-B$10 -> -5 | C136: =OFFSET(Calculations!AT$43,$A136,0)-V$3-B$11 -> 78.9804577 | D136: =OFFSET(Calculations!AU$43,$A136,0)-W$3-B$12 -> 67.83859567 | E136: -5 | F136: 78.9804577 | G136: 67.83859567 | H136: -5 | I136: 78.9804577 | J136: 67.83859567 | K136: -5 | L136: 78.9804577 | M136: 67.83859567 | N136: =IF(P133=1,K136*B$1/(B$1+B$2+L136),99999) -> -1.123842275 | O136: 15.24797634 | U136: =(9*U135+U145)/10 -> 0 | V136: 60.79027685 | W136: 51.1929339 | X136: -10 | Y136: 0 | Z136: 0 | AA136: 0 | AB136: 0.4067366431 | AC136: 0.9135454576 | AD136: -10 | AE136: 0 | AF136: 0 | AG136: 2 | AS136: 5 | AT136: 83.04782413 | AU136: 83.97405025
A137: 86 | B137: =OFFSET(Calculations!AS$43,$A137,0)-U$3-B$10 -> 5 | C137: =OFFSET(Calculations!AT$43,$A137,0)-V$3-B$11 -> 78.9804577 | D137: =OFFSET(Calculations!AU$43,$A137,0)-W$3-B$12 -> 67.83859567 | E137: 5 | F137: 78.9804577 | G137: 67.83859567 | H137: 5 | I137: 78.9804577 | J137: 67.83859567 | K137: 5 | L137: 78.9804577 | M137: 67.83859567 | N137: =IF(P133=1,K137*B$1/(B$1+B$2+L137),99999) -> 1.123842275 | O137: 15.24797634 | U137: =(8*U135+2*U145)/10 -> 0 | V137: 61.19701349 | W137: 52.10647936 | X137: -10 | Y137: 0 | Z137: 0 | AA137: 0 | AB137: 0.4067366431 | AC137: 0.9135454576 | AD137: -10 | AE137: 0 | AF137: 0 | AG137: 2 | AS137: 0 | AT137: 76.65300593 | AU137: 86.82120675
A138: 79 | B138: =OFFSET(Calculations!AS$43,$A138,0)-U$3-B$10 -> 5 | C138: =OFFSET(Calculations!AT$43,$A138,0)-V$3-B$11 -> 74.91309127 | D138: =OFFSET(Calculations!AU$43,$A138,0)-W$3-B$12 -> 58.70314109 | E138: 5 | F138: 74.91309127 | G138: 58.70314109 | H138: 5 | I138: 74.91309127 | J138: 58.70314109 | K138: 5 | L138: 74.91309127 | M138: 58.70314109 | N138: =IF(P133=1,K138*B$1/(B$1+B$2+L138),99999) -> 1.177674708 | O138: 13.82664091 | U138: =(7*U135+3*U145)/10 -> 0 | V138: 61.60375013 | W138: 53.02002481 | X138: -10 | Y138: 0 | Z138: 0 | AA138: 0 | AB138: 0.4067366431 | AC138: 0.9135454576 | AD138: -10 | AE138: 0 | AF138: 0 | AG138: 2 | AS138: -7 | AT138: 83.04782413 | AU138: 83.97405025
A139: 78 | B139: =OFFSET(Calculations!AS$43,$A139,0)-U$3-B$10 -> 0 | C139: =OFFSET(Calculations!AT$43,$A139,0)-V$3-B$11 -> 77.65433667 | D139: =OFFSET(Calculations!AU$43,$A139,0)-W$3-B$12 -> 57.48266001 | E139: 0 | F139: 77.65433667 | G139: 57.48266001 | H139: 0 | I139: 77.65433667 | J139: 57.48266001 | K139: 0 | L139: 77.65433667 | M139: 57.48266001 | N139: =IF(P133=1,K139*B$1/(B$1+B$2+L139),99999) -> 0 | O139: 13.11575951 | U139: =(6*U135+4*U145)/10 -> 0 | V139: 62.01048678 | W139: 53.93357027 | X139: -10 | Y139: 0 | Z139: 0 | AA139: 0 | AB139: 0.4067366431 | AC139: 0.9135454576 | AD139: -10 | AE139: 0 | AF139: 0 | AG139: 2 | AS139: 0 | AT139: 69.34464226 | AU139: 90.07509989
U140: =(5*U135+5*U145)/10 -> 0 | V140: 62.41722342 | W140: 54.84711573 | X140: -10 | Y140: 0 | Z140: 0 | AA140: 0 | AB140: 0.4067366431 | AC140: 0.9135454576 | AD140: -10 | AE140: 0 | AF140: 0 | AG140: 2 | AS140: 7 | AT140: 83.04782413 | AU140: 83.97405025
A141: =A133+7 -> 92 | B141: =OFFSET(Calculations!AS$43,$A141,0)-U$3-B$10 -> 0 | C141: =OFFSET(Calculations!AT$43,$A141,0)-V$3-B$11 -> 85.79394178 | D141: =OFFSET(Calculations!AU$43,$A141,0)-W$3-B$12 -> 75.7513999 | E141: =B141*F$5+C141*F$4 -> 0 | F141: =C141*F$5-B141*F$4 -> 85.79394178 | G141: =D141 -> 75.7513999 | H141: 0 | I141: =F141*F$7+G141*F$6 -> 85.79394178 | J141: =G141*F$7-F141*F$6 -> 75.7513999 | K141: =H141*F$9+J141*F$8 -> 0 | L141: =I141 -> 85.79394178 | M141: =J141*F$9-H141*F$8 -> 75.7513999 | N141: =IF(P141=1,K141*B$1/(B$1+B$2+L141),99999) -> 0 | O141: =M141*B$1/(B$1+B$2+L141) -> 15.81548864 | P141: =IF(MIN(L141:L147)+B$2+B$1>0,1,0) -> 1 | U141: =(4*U135+6*U145)/10 -> 0 | V141: 62.82396006 | W141: 55.76066119 | X141: -10 | Y141: 0 | Z141: 0 | AA141: 0 | AB141: 0.4067366431 | AC141: 0.9135454576 | AD141: -10 | AE141: 0 | AF141: 0 | AG141: 2 | AS141: -5 | AT141: 87.11519056 | AU141: 93.10950482
A142: 85 | B142: =OFFSET(Calculations!AS$43,$A142,0)-U$3-B$10 -> 0 | C142: =OFFSET(Calculations!AT$43,$A142,0)-V$3-B$11 -> 81.72353019 | D142: =OFFSET(Calculations!AU$43,$A142,0)-W$3-B$12 -> 66.61730111 | E142: 0 | F142: 81.72353019 | G142: 66.61730111 | H142: 0 | I142: 81.72353019 | J142: 66.61730111 | K142: 0 | L142: 81.72353019 | M142: 66.61730111 | N142: =IF(P141=1,K142*B$1/(B$1+B$2+L142),99999) -> 0 | O142: 14.52567318 | U142: =(3*U135+7*U145)/10 -> 0 | V142: 63.2306967 | W142: 56.67420665 | X142: -10 | Y142: 0 | Z142: 0 | AA142: 0 | AB142: 0.4067366431 | AC142: 0.9135454576 | AD142: -10 | AE142: 0 | AF142: 0 | AG142: 2 | AS142: 0 | AT142: 89.86557142 | AU142: 91.88495637
A143: 84 | B143: =OFFSET(Calculations!AS$43,$A143,0)-U$3-B$10 -> -5 | C143: =OFFSET(Calculations!AT$43,$A143,0)-V$3-B$11 -> 78.9804577 | D143: =OFFSET(Calculations!AU$43,$A143,0)-W$3-B$12 -> 67.83859567 | E143: -5 | F143: 78.9804577 | G143: 67.83859567 | H143: -5 | I143: 78.9804577 | J143: 67.83859567 | K143: -5 | L143: 78.9804577 | M143: 67.83859567 | N143: =IF(P141=1,K143*B$1/(B$1+B$2+L143),99999) -> -1.123842275 | O143: 15.24797634 | U143: =(2*U135+8*U145)/10 -> 0 | V143: 63.63743335 | W143: 57.5877521 | X143: -10 | Y143: 0 | Z143: 0 | AA143: 0 | AB143: 0.4067366431 | AC143: 0.9135454576 | AD143: -10 | AE143: 0 | AF143: 0 | AG143: 2 | AS143: 5 | AT143: 87.11519056 | AU143: 93.10950482
A144: 91 | B144: =OFFSET(Calculations!AS$43,$A144,0)-U$3-B$10 -> -5 | C144: =OFFSET(Calculations!AT$43,$A144,0)-V$3-B$11 -> 83.04782413 | D144: =OFFSET(Calculations!AU$43,$A144,0)-W$3-B$12 -> 76.97405025 | E144: -5 | F144: 83.04782413 | G144: 76.97405025 | H144: -5 | I144: 83.04782413 | J144: 76.97405025 | K144: -5 | L144: 83.04782413 | M144: 76.97405025 | N144: =IF(P141=1,K144*B$1/(B$1+B$2+L144),99999) -> -1.074716157 | O144: 16.5450511 | U144: =(1*U135+9*U145)/10 -> 0 | V144: 64.04416999 | W144: 58.50129756 | X144: -10 | Y144: 0 | Z144: 0 | AA144: 0 | AB144: 0.4067366431 | AC144: 0.9135454576 | AD144: -10 | AE144: 0 | AF144: 0 | AG144: 2 | AS144: 0 | AT144: 80.72037236 | AU144: 95.95666132
A145: 93 | B145: =OFFSET(Calculations!AS$43,$A145,0)-U$3-B$10 -> 5 | C145: =OFFSET(Calculations!AT$43,$A145,0)-V$3-B$11 -> 83.04782413 | D145: =OFFSET(Calculations!AU$43,$A145,0)-W$3-B$12 -> 76.97405025 | E145: 5 | F145: 83.04782413 | G145: 76.97405025 | H145: 5 | I145: 83.04782413 | J145: 76.97405025 | K145: 5 | L145: 83.04782413 | M145: 76.97405025 | N145: =IF(P141=1,K145*B$1/(B$1+B$2+L145),99999) -> 1.074716157 | O145: 16.5450511 | T145: =T135+7 -> 70 | U145: =OFFSET(Calculations!AS$46,$T145,0) -> 0 | V145: =OFFSET(Calculations!AT$46,$T145,0) -> 64.45090663 | W145: =OFFSET(Calculations!AU$46,$T145,0) -> 59.41484302 | X145: =OFFSET(Calculations!AS$43,$T145,0)-OFFSET(Calculations!AS$45,$T145,0) -> -10 | Y145: =OFFSET(Calculations!AT$43,$T145,0)-OFFSET(Calculations!AT$45,$T145,0) -> 0 | Z145: =OFFSET(Calculations!AU$43,$T145,0)-OFFSET(Calculations!AU$45,$T145,0) -> 0 | AA145: 0 | AB145: 0.4067366431 | AC145: 0.9135454576 | AD145: -10 | AE145: 0 | AF145: 0 | AG145: 2 | AS145: -7 | AT145: 87.11519056 | AU145: 93.10950482
A146: 86 | B146: =OFFSET(Calculations!AS$43,$A146,0)-U$3-B$10 -> 5 | C146: =OFFSET(Calculations!AT$43,$A146,0)-V$3-B$11 -> 78.9804577 | D146: =OFFSET(Calculations!AU$43,$A146,0)-W$3-B$12 -> 67.83859567 | E146: 5 | F146: 78.9804577 | G146: 67.83859567 | H146: 5 | I146: 78.9804577 | J146: 67.83859567 | K146: 5 | L146: 78.9804577 | M146: 67.83859567 | N146: =IF(P141=1,K146*B$1/(B$1+B$2+L146),99999) -> 1.123842275 | O146: 15.24797634 | U146: =(9*U145+U155)/10 -> 0 | V146: 64.85764328 | W146: 60.32838848 | X146: -10 | Y146: 0 | Z146: 0 | AA146: 0 | AB146: 0.4067366431 | AC146: 0.9135454576 | AD146: -10 | AE146: 0 | AF146: 0 | AG146: 2 | AS146: 0 | AT146: 73.4120087 | AU146: 99.21055447
A147: 85 | B147: =OFFSET(Calculations!AS$43,$A147,0)-U$3-B$10 -> 0 | C147: =OFFSET(Calculations!AT$43,$A147,0)-V$3-B$11 -> 81.72353019 | D147: =OFFSET(Calculations!AU$43,$A147,0)-W$3-B$12 -> 66.61730111 | E147: 0 | F147: 81.72353019 | G147: 66.61730111 | H147: 0 | I147: 81.72353019 | J147: 66.61730111 | K147: 0 | L147: 81.72353019 | M147: 66.61730111 | N147: =IF(P141=1,K147*B$1/(B$1+B$2+L147),99999) -> 0 | O147: 14.52567318 | U147: =(8*U145+2*U155)/10 -> 0 | V147: 65.26437992 | W147: 61.24193393 | X147: -10 | Y147: 0 | Z147: 0 | AA147: 0 | AB147: 0.4067366431 | AC147: 0.9135454576 | AD147: -10 | AE147: 0 | AF147: 0 | AG147: 2 | AS147: 7 | AT147: 87.11519056 | AU147: 93.10950482
U148: =(7*U145+3*U155)/10 -> 0 | V148: 65.67111656 | W148: 62.15547939 | X148: -10 | Y148: 0 | Z148: 0 | AA148: 0 | AB148: 0.4067366431 | AC148: 0.9135454576 | AD148: -10 | AE148: 0 | AF148: 0 | AG148: 2 | AS148: -5 | AT148: 91.18255699 | AU148: 102.2449594
A149: =A141+7 -> 99 | B149: =OFFSET(Calculations!AS$43,$A149,0)-U$3-B$10 -> 0 | C149: =OFFSET(Calculations!AT$43,$A149,0)-V$3-B$11 -> 89.86557142 | D149: =OFFSET(Calculations!AU$43,$A149,0)-W$3-B$12 -> 84.88495637 | E149: =B149*F$5+C149*F$4 -> 0 | F149: =C149*F$5-B149*F$4 -> 89.86557142 | G149: =D149 -> 84.88495637 | H149: 0 | I149: =F149*F$7+G149*F$6 -> 89.86557142 | J149: =G149*F$7-F149*F$6 -> 84.88495637 | K149: =H149*F$9+J149*F$8 -> 0 | L149: =I149 -> 89.86557142 | M149: =J149*F$9-H149*F$8 -> 84.88495637 | P149: =IF(MIN(L149:L155)+B$2+B$1>0,1,0) -> 1 | Q149: =IF(P149=1,K149*B$1/(B$1+B$2+L149),99999) -> 0 | R149: =M149*B$1/(B$1+B$2+L149) -> 16.99984392 | U149: =(6*U145+4*U155)/10 -> 0 | V149: 66.07785321 | W149: 63.06902485 | X149: -10 | Y149: 0 | Z149: 0 | AA149: 0 | AB149: 0.4067366431 | AC149: 0.9135454576 | AD149: -10 | AE149: 0 | AF149: 0 | AG149: 2 | AS149: 0 | AT149: 93.87042667 | AU149: 100.8754214
A150: 92 | B150: =OFFSET(Calculations!AS$43,$A150,0)-U$3-B$10 -> 0 | C150: =OFFSET(Calculations!AT$43,$A150,0)-V$3-B$11 -> 85.79394178 | D150: =OFFSET(Calculations!AU$43,$A150,0)-W$3-B$12 -> 75.7513999 | E150: 0 | F150: 85.79394178 | G150: 75.7513999 | H150: 0 | I150: 85.79394178 | J150: 75.7513999 | K150: 0 | L150: 85.79394178 | M150: 75.7513999 | Q150: =IF(P149=1,K150*B$1/(B$1+B$2+L150),99999) -> 0 | R150: 15.81548864 | U150: =(5*U145+5*U155)/10 -> 0 | V150: 66.48458985 | W150: 63.98257031 | X150: -10 | Y150: 0 | Z150: 0 | AA150: 0 | AB150: 0.4067366431 | AC150: 0.9135454576 | AD150: -10 | AE150: 0 | AF150: 0 | AG150: 2 | AS150: 5 | AT150: 91.18255699 | AU150: 102.2449594
A151: 91 | B151: =OFFSET(Calculations!AS$43,$A151,0)-U$3-B$10 -> -5 | C151: =OFFSET(Calculations!AT$43,$A151,0)-V$3-B$11 -> 83.04782413 | D151: =OFFSET(Calculations!AU$43,$A151,0)-W$3-B$12 -> 76.97405025 | E151: -5 | F151: 83.04782413 | G151: 76.97405025 | H151: -5 | I151: 83.04782413 | J151: 76.97405025 | K151: -5 | L151: 83.04782413 | M151: 76.97405025 | Q151: =IF(P149=1,K151*B$1/(B$1+B$2+L151),99999) -> -1.074716157 | R151: 16.5450511 | U151: =(4*U145+6*U155)/10 -> 0 | V151: 66.89132649 | W151: 64.89611576 | X151: -10 | Y151: 0 | Z151: 0 | AA151: 0 | AB151: 0.4067366431 | AC151: 0.9135454576 | AD151: -10 | AE151: 0 | AF151: 0 | AG151: 2 | AS151: 0 | AT151: 84.94551132 | AU151: 105.4228929
A152: 98 | B152: =OFFSET(Calculations!AS$43,$A152,0)-U$3-B$10 -> -5 | C152: =OFFSET(Calculations!AT$43,$A152,0)-V$3-B$11 -> 87.11519056 | D152: =OFFSET(Calculations!AU$43,$A152,0)-W$3-B$12 -> 86.10950482 | E152: -5 | F152: 87.11519056 | G152: 86.10950482 | H152: -5 | I152: 87.11519056 | J152: 86.10950482 | K152: -5 | L152: 87.11519056 | M152: 86.10950482 | Q152: =IF(P149=1,K152*B$1/(B$1+B$2+L152),99999) -> -1.029705028 | R152: 17.73347801 | U152: =(3*U145+7*U155)/10 -> 0 | V152: 67.29806314 | W152: 65.80966122 | X152: -10 | Y152: 0 | Z152: 0 | AA152: 0 | AB152: 0.4067366431 | AC152: 0.9135454576 | AD152: -10 | AE152: 0 | AF152: 0 | AG152: 2 | AS152: -7 | AT152: 91.18255699 | AU152: 102.2449594
A153: 100 | B153: =OFFSET(Calculations!AS$43,$A153,0)-U$3-B$10 -> 5 | C153: =OFFSET(Calculations!AT$43,$A153,0)-V$3-B$11 -> 87.11519056 | D153: =OFFSET(Calculations!AU$43,$A153,0)-W$3-B$12 -> 86.10950482 | E153: 5 | F153: 87.11519056 | G153: 86.10950482 | H153: 5 | I153: 87.11519056 | J153: 86.10950482 | K153: 5 | L153: 87.11519056 | M153: 86.10950482 | Q153: =IF(P149=1,K153*B$1/(B$1+B$2+L153),99999) -> 1.029705028 | R153: 17.73347801 | U153: =(2*U145+8*U155)/10 -> 0 | V153: 67.70479978 | W153: 66.72320668 | X153: -10 | Y153: 0 | Z153: 0 | AA153: 0 | AB153: 0.4067366431 | AC153: 0.9135454576 | AD153: -10 | AE153: 0 | AF153: 0 | AG153: 2 | AS153: 0 | AT153: 77.81745913 | AU153: 109.0548169
A154: 93 | B154: =OFFSET(Calculations!AS$43,$A154,0)-U$3-B$10 -> 5 | C154: =OFFSET(Calculations!AT$43,$A154,0)-V$3-B$11 -> 83.04782413 | D154: =OFFSET(Calculations!AU$43,$A154,0)-W$3-B$12 -> 76.97405025 | E154: 5 | F154: 83.04782413 | G154: 76.97405025 | H154: 5 | I154: 83.04782413 | J154: 76.97405025 | K154: 5 | L154: 83.04782413 | M154: 76.97405025 | Q154: =IF(P149=1,K154*B$1/(B$1+B$2+L154),99999) -> 1.074716157 | R154: 16.5450511 | U154: =(1*U145+9*U155)/10 -> 0 | V154: 68.11153642 | W154: 67.63675214 | X154: -10 | Y154: 0 | Z154: 0 | AA154: 0 | AB154: 0.4067366431 | AC154: 0.9135454576 | AD154: -10 | AE154: 0 | AF154: 0 | AG154: 2 | AS154: 7 | AT154: 91.18255699 | AU154: 102.2449594
A155: 92 | B155: =OFFSET(Calculations!AS$43,$A155,0)-U$3-B$10 -> 0 | C155: =OFFSET(Calculations!AT$43,$A155,0)-V$3-B$11 -> 85.79394178 | D155: =OFFSET(Calculations!AU$43,$A155,0)-W$3-B$12 -> 75.7513999 | E155: 0 | F155: 85.79394178 | G155: 75.7513999 | H155: 0 | I155: 85.79394178 | J155: 75.7513999 | K155: 0 | L155: 85.79394178 | M155: 75.7513999 | Q155: =IF(P149=1,K155*B$1/(B$1+B$2+L155),99999) -> 0 | R155: 15.81548864 | T155: =T145+7 -> 77 | U155: =OFFSET(Calculations!AS$46,$T155,0) -> 0 | V155: =OFFSET(Calculations!AT$46,$T155,0) -> 68.51827306 | W155: =OFFSET(Calculations!AU$46,$T155,0) -> 68.55029759 | X155: =OFFSET(Calculations!AS$43,$T155,0)-OFFSET(Calculations!AS$45,$T155,0) -> -10 | Y155: =OFFSET(Calculations!AT$43,$T155,0)-OFFSET(Calculations!AT$45,$T155,0) -> 0 | Z155: =OFFSET(Calculations!AU$43,$T155,0)-OFFSET(Calculations!AU$45,$T155,0) -> 0 | AA155: 0 | AB155: 0.4067366431 | AC155: 0.9135454576 | AD155: -10 | AE155: 0 | AF155: 0 | AG155: 2 | AS155: -5 | AT155: 95.72246199 | AU155: 111.1550246
U156: =(9*U155+U165)/10 -> 0 | V156: 68.92500971 | W156: 69.46384305 | X156: -10 | Y156: 0 | Z156: 0 | AA156: 0 | AB156: 0.4067366431 | AC156: 0.9135454576 | AD156: -10 | AE156: 0 | AF156: 0 | AG156: 2 | AS156: 0 | AT156: 98.22947161 | AU156: 109.4640253
A157: =A149+7 -> 106 | B157: =OFFSET(Calculations!AS$43,$A157,0)-U$3-B$10 -> 0 | C157: =OFFSET(Calculations!AT$43,$A157,0)-V$3-B$11 -> 93.87042667 | D157: =OFFSET(Calculations!AU$43,$A157,0)-W$3-B$12 -> 93.87542139 | E157: =B157*F$5+C157*F$4 -> 0 | F157: =C157*F$5-B157*F$4 -> 93.87042667 | G157: =D157 -> 93.87542139 | H157: 0 | I157: =F157*F$7+G157*F$6 -> 93.87042667 | J157: =G157*F$7-F157*F$6 -> 93.87542139 | K157: =H157*F$9+J157*F$8 -> 0 | L157: =I157 -> 93.87042667 | M157: =J157*F$9-H157*F$8 -> 93.87542139 | P157: =IF(MIN(L157:L163)+B$2+B$1>0,1,0) -> 1 | Q157: =IF(P157=1,K157*B$1/(B$1+B$2+L157),99999) -> 0 | R157: =M157*B$1/(B$1+B$2+L157) -> 18.07548585 | U157: =(8*U155+2*U165)/10 -> 0 | V157: 69.33174635 | W157: 70.37738851 | X157: -10 | Y157: 0 | Z157: 0 | AA157: 0 | AB157: 0.4067366431 | AC157: 0.9135454576 | AD157: -10 | AE157: 0 | AF157: 0 | AG157: 2 | AS157: 5 | AT157: 95.72246199 | AU157: 111.1550246
A158: 99 | B158: =OFFSET(Calculations!AS$43,$A158,0)-U$3-B$10 -> 0 | C158: =OFFSET(Calculations!AT$43,$A158,0)-V$3-B$11 -> 89.86557142 | D158: =OFFSET(Calculations!AU$43,$A158,0)-W$3-B$12 -> 84.88495637 | E158: 0 | F158: 89.86557142 | G158: 84.88495637 | H158: 0 | I158: 89.86557142 | J158: 84.88495637 | K158: 0 | L158: 89.86557142 | M158: 84.88495637 | Q158: =IF(P157=1,K158*B$1/(B$1+B$2+L158),99999) -> 0 | R158: 16.99984392 | U158: =(7*U155+3*U165)/10 -> 0 | V158: 69.73848299 | W158: 71.29093397 | X158: -10 | Y158: 0 | Z158: 0 | AA158: 0 | AB158: 0.4067366431 | AC158: 0.9135454576 | AD158: -10 | AE158: 0 | AF158: 0 | AG158: 2 | AS158: 0 | AT158: 89.91919898 | AU158: 115.069375
A159: 98 | B159: =OFFSET(Calculations!AS$43,$A159,0)-U$3-B$10 -> -5 | C159: =OFFSET(Calculations!AT$43,$A159,0)-V$3-B$11 -> 87.11519056 | D159: =OFFSET(Calculations!AU$43,$A159,0)-W$3-B$12 -> 86.10950482 | E159: -5 | F159: 87.11519056 | G159: 86.10950482 | H159: -5 | I159: 87.11519056 | J159: 86.10950482 | K159: -5 | L159: 87.11519056 | M159: 86.10950482 | Q159: =IF(P157=1,K159*B$1/(B$1+B$2+L159),99999) -> -1.029705028 | R159: 17.73347801 | U159: =(6*U155+4*U165)/10 -> 0 | V159: 70.14521964 | W159: 72.20447942 | X159: -10 | Y159: 0 | Z159: 0 | AA159: 0 | AB159: 0.4067366431 | AC159: 0.9135454576 | AD159: -10 | AE159: 0 | AF159: 0 | AG159: 2 | AS159: -7 | AT159: 95.72246199 | AU159: 111.1550246
A160: 105 | B160: =OFFSET(Calculations!AS$43,$A160,0)-U$3-B$10 -> -5 | C160: =OFFSET(Calculations!AT$43,$A160,0)-V$3-B$11 -> 91.18255699 | D160: =OFFSET(Calculations!AU$43,$A160,0)-W$3-B$12 -> 95.2449594 | E160: -5 | F160: 91.18255699 | G160: 95.2449594 | H160: -5 | I160: 91.18255699 | J160: 95.2449594 | K160: -5 | L160: 91.18255699 | M160: 95.2449594 | Q160: =IF(P157=1,K160*B$1/(B$1+B$2+L160),99999) -> -0.9883126398 | R160: 18.82635945 | U160: =(5*U155+5*U165)/10 -> 0 | V160: 70.55195628 | W160: 73.11802488 | X160: -10 | Y160: 0 | Z160: 0 | AA160: 0 | AB160: 0.4067366431 | AC160: 0.9135454576 | AD160: -10 | AE160: 0 | AF160: 0 | AG160: 2 | AS160: 0 | AT160: 83.2868984 | AU160: 119.5429182
A161: 107 | B161: =OFFSET(Calculations!AS$43,$A161,0)-U$3-B$10 -> 5 | C161: =OFFSET(Calculations!AT$43,$A161,0)-V$3-B$11 -> 91.18255699 | D161: =OFFSET(Calculations!AU$43,$A161,0)-W$3-B$12 -> 95.2449594 | E161: 5 | F161: 91.18255699 | G161: 95.2449594 | H161: 5 | I161: 91.18255699 | J161: 95.2449594 | K161: 5 | L161: 91.18255699 | M161: 95.2449594 | Q161: =IF(P157=1,K161*B$1/(B$1+B$2+L161),99999) -> 0.9883126398 | R161: 18.82635945 | U161: =(4*U155+6*U165)/10 -> 0 | V161: 70.95869292 | W161: 74.03157034 | X161: -10 | Y161: 0 | Z161: 0 | AA161: 0 | AB161: 0.4067366431 | AC161: 0.9135454576 | AD161: -10 | AE161: 0 | AF161: 0 | AG161: 2 | AS161: 7 | AT161: 95.72246199 | AU161: 111.1550246
A162: 100 | B162: =OFFSET(Calculations!AS$43,$A162,0)-U$3-B$10 -> 5 | C162: =OFFSET(Calculations!AT$43,$A162,0)-V$3-B$11 -> 87.11519056 | D162: =OFFSET(Calculations!AU$43,$A162,0)-W$3-B$12 -> 86.10950482 | E162: 5 | F162: 87.11519056 | G162: 86.10950482 | H162: 5 | I162: 87.11519056 | J162: 86.10950482 | K162: 5 | L162: 87.11519056 | M162: 86.10950482 | Q162: =IF(P157=1,K162*B$1/(B$1+B$2+L162),99999) -> 1.029705028 | R162: 17.73347801 | U162: =(3*U155+7*U165)/10 -> 0 | V162: 71.36542957 | W162: 74.9451158 | X162: -10 | Y162: 0 | Z162: 0 | AA162: 0 | AB162: 0.4067366431 | AC162: 0.9135454576 | AD162: -10 | AE162: 0 | AF162: 0 | AG162: 2 | AS162: -5 | AT162: 101.314391 | AU162: 119.4454004
A163: 99 | B163: =OFFSET(Calculations!AS$43,$A163,0)-U$3-B$10 -> 0 | C163: =OFFSET(Calculations!AT$43,$A163,0)-V$3-B$11 -> 89.86557142 | D163: =OFFSET(Calculations!AU$43,$A163,0)-W$3-B$12 -> 84.88495637 | E163: 0 | F163: 89.86557142 | G163: 84.88495637 | H163: 0 | I163: 89.86557142 | J163: 84.88495637 | K163: 0 | L163: 89.86557142 | M163: 84.88495637 | Q163: =IF(P157=1,K163*B$1/(B$1+B$2+L163),99999) -> 0 | R163: 16.99984392 | U163: =(2*U155+8*U165)/10 -> 0 | V163: 71.77216621 | W163: 75.85866126 | X163: -10 | Y163: 0 | Z163: 0 | AA163: 0 | AB163: 0.4067366431 | AC163: 0.9135454576 | AD163: -10 | AE163: 0 | AF163: 0 | AG163: 2 | AS163: 0 | AT163: 103.3436411 | AU163: 117.1916898
U164: =(1*U155+9*U165)/10 -> 0 | V164: 72.17890285 | W164: 76.77220671 | X164: -10 | Y164: 0 | Z164: 0 | AA164: 0 | AB164: 0.4067366431 | AC164: 0.9135454576 | AD164: -10 | AE164: 0 | AF164: 0 | AG164: 2 | AS164: 5 | AT164: 101.314391 | AU164: 119.4454004
A165: =A157+7 -> 113 | B165: =OFFSET(Calculations!AS$43,$A165,0)-U$3-B$10 -> 0 | C165: =OFFSET(Calculations!AT$43,$A165,0)-V$3-B$11 -> 98.22947161 | D165: =OFFSET(Calculations!AU$43,$A165,0)-W$3-B$12 -> 102.4640253 | E165: =B165*F$5+C165*F$4 -> 0 | F165: =C165*F$5-B165*F$4 -> 98.22947161 | G165: =D165 -> 102.4640253 | H165: 0 | I165: =F165*F$7+G165*F$6 -> 98.22947161 | J165: =G165*F$7-F165*F$6 -> 102.4640253 | K165: =H165*F$9+J165*F$8 -> 0 | L165: =I165 -> 98.22947161 | M165: =J165*F$9-H165*F$8 -> 102.4640253 | P165: =IF(MIN(L165:L171)+B$2+B$1>0,1,0) -> 1 | Q165: =IF(P165=1,K165*B$1/(B$1+B$2+L165),99999) -> 0 | R165: =M165*B$1/(B$1+B$2+L165) -> 18.93458848 | T165: =T155+7 -> 84 | U165: =OFFSET(Calculations!AS$46,$T165,0) -> 0 | V165: =OFFSET(Calculations!AT$46,$T165,0) -> 72.5856395 | W165: =OFFSET(Calculations!AU$46,$T165,0) -> 77.68575217 | X165: =OFFSET(Calculations!AS$43,$T165,0)-OFFSET(Calculations!AS$45,$T165,0) -> -10 | Y165: =OFFSET(Calculations!AT$43,$T165,0)-OFFSET(Calculations!AT$45,$T165,0) -> 0 | Z165: =OFFSET(Calculations!AU$43,$T165,0)-OFFSET(Calculations!AU$45,$T165,0) -> 0 | AA165: 0 | AB165: 0.4067366431 | AC165: 0.9135454576 | AD165: -10 | AE165: 0 | AF165: 0 | AG165: 2 | AS165: 0 | AT165: 96.63047678 | AU165: 124.6474141
A166: 106 | B166: =OFFSET(Calculations!AS$43,$A166,0)-U$3-B$10 -> 0 | C166: =OFFSET(Calculations!AT$43,$A166,0)-V$3-B$11 -> 93.87042667 | D166: =OFFSET(Calculations!AU$43,$A166,0)-W$3-B$12 -> 93.87542139 | E166: 0 | F166: 93.87042667 | G166: 93.87542139 | H166: 0 | I166: 93.87042667 | J166: 93.87542139 | K166: 0 | L166: 93.87042667 | M166: 93.87542139 | Q166: =IF(P165=1,K166*B$1/(B$1+B$2+L166),99999) -> 0 | R166: 18.07548585 | U166: =(9*U165+U175)/10 -> 0 | V166: 72.99237614 | W166: 78.59929763 | X166: -10 | Y166: 0 | Z166: 0 | AA166: 0 | AB166: 0.4067366431 | AC166: 0.9135454576 | AD166: -10 | AE166: 0 | AF166: 0 | AG166: 2 | AS166: -7 | AT166: 101.314391 | AU166: 119.4454004
A167: 105 | B167: =OFFSET(Calculations!AS$43,$A167,0)-U$3-B$10 -> -5 | C167: =OFFSET(Calculations!AT$43,$A167,0)-V$3-B$11 -> 91.18255699 | D167: =OFFSET(Calculations!AU$43,$A167,0)-W$3-B$12 -> 95.2449594 | E167: -5 | F167: 91.18255699 | G167: 95.2449594 | H167: -5 | I167: 91.18255699 | J167: 95.2449594 | K167: -5 | L167: 91.18255699 | M167: 95.2449594 | Q167: =IF(P165=1,K167*B$1/(B$1+B$2+L167),99999) -> -0.9883126398 | R167: 18.82635945 | U167: =(8*U165+2*U175)/10 -> 0 | V167: 73.39911278 | W167: 79.51284309 | X167: -10 | Y167: 0 | Z167: 0 | AA167: 0 | AB167: 0.4067366431 | AC167: 0.9135454576 | AD167: -10 | AE167: 0 | AF167: 0 | AG167: 2 | AS167: 0 | AT167: 91.27743193 | AU167: 130.5925727
A168: 112 | B168: =OFFSET(Calculations!AS$43,$A168,0)-U$3-B$10 -> -5 | C168: =OFFSET(Calculations!AT$43,$A168,0)-V$3-B$11 -> 95.72246199 | D168: =OFFSET(Calculations!AU$43,$A168,0)-W$3-B$12 -> 104.1550246 | E168: -5 | F168: 95.72246199 | G168: 104.1550246 | H168: -5 | I168: 95.72246199 | J168: 104.1550246 | K168: -5 | L168: 95.72246199 | M168: 104.1550246 | Q168: =IF(P165=1,K168*B$1/(B$1+B$2+L168),99999) -> -0.9458727892 | R168: 19.70348073 | U168: =(7*U165+3*U175)/10 -> 0 | V168: 73.80584942 | W168: 80.42638854 | X168: -10 | Y168: 0 | Z168: 0 | AA168: 0 | AB168: 0.4067366431 | AC168: 0.9135454576 | AD168: -10 | AE168: 0 | AF168: 0 | AG168: 2 | AS168: 7 | AT168: 101.314391 | AU168: 119.4454004
A169: 114 | B169: =OFFSET(Calculations!AS$43,$A169,0)-U$3-B$10 -> 5 | C169: =OFFSET(Calculations!AT$43,$A169,0)-V$3-B$11 -> 95.72246199 | D169: =OFFSET(Calculations!AU$43,$A169,0)-W$3-B$12 -> 104.1550246 | E169: 5 | F169: 95.72246199 | G169: 104.1550246 | H169: 5 | I169: 95.72246199 | J169: 104.1550246 | K169: 5 | L169: 95.72246199 | M169: 104.1550246 | Q169: =IF(P165=1,K169*B$1/(B$1+B$2+L169),99999) -> 0.9458727892 | R169: 19.70348073 | U169: =(6*U165+4*U175)/10 -> 0 | V169: 74.21258607 | W169: 81.339934 | X169: -10 | Y169: 0 | Z169: 0 | AA169: 0 | AB169: 0.4067366431 | AC169: 0.9135454576 | AD169: -10 | AE169: 0 | AF169: 0 | AG169: 2 | AS169: -5 | AT169: 108.7458393 | AU169: 126.1367064
A170: 107 | B170: =OFFSET(Calculations!AS$43,$A170,0)-U$3-B$10 -> 5 | C170: =OFFSET(Calculations!AT$43,$A170,0)-V$3-B$11 -> 91.18255699 | D170: =OFFSET(Calculations!AU$43,$A170,0)-W$3-B$12 -> 95.2449594 | E170: 5 | F170: 91.18255699 | G170: 95.2449594 | H170: 5 | I170: 91.18255699 | J170: 95.2449594 | K170: 5 | L170: 91.18255699 | M170: 95.2449594 | Q170: =IF(P165=1,K170*B$1/(B$1+B$2+L170),99999) -> 0.9883126398 | R170: 18.82635945 | U170: =(5*U165+5*U175)/10 -> 0 | V170: 74.61932271 | W170: 82.25347946 | X170: -10 | Y170: 0 | Z170: 0 | AA170: 0 | AB170: 0.4077227214 | AC170: 0.9156128139 | AD170: -10 | AE170: 0 | AF170: 0 | AG170: 2 | AS170: 0 | AT170: 110.1742848 | AU170: 123.4501912
A171: 106 | B171: =OFFSET(Calculations!AS$43,$A171,0)-U$3-B$10 -> 0 | C171: =OFFSET(Calculations!AT$43,$A171,0)-V$3-B$11 -> 93.87042667 | D171: =OFFSET(Calculations!AU$43,$A171,0)-W$3-B$12 -> 93.87542139 | E171: 0 | F171: 93.87042667 | G171: 93.87542139 | H171: 0 | I171: 93.87042667 | J171: 93.87542139 | K171: 0 | L171: 93.87042667 | M171: 93.87542139 | Q171: =IF(P165=1,K171*B$1/(B$1+B$2+L171),99999) -> 0 | R171: 18.07548585 | U171: =(4*U165+6*U175)/10 -> 0 | V171: 75.02605935 | W171: 83.16702492 | X171: -10 | Y171: 0 | Z171: 0 | AA171: 0 | AB171: 0.4087087998 | AC171: 0.9176801701 | AD171: -10 | AE171: 0 | AF171: 0 | AG171: 2 | AS171: 5 | AT171: 108.7458393 | AU171: 126.1367064
U172: =(3*U165+7*U175)/10 -> 0 | V172: 75.432796 | W172: 84.08057037 | X172: -10 | Y172: 0 | Z172: 0 | AA172: 0 | AB172: 0.4096948781 | AC172: 0.9197475263 | AD172: -10 | AE172: 0 | AF172: 0 | AG172: 2 | AS172: 0 | AT172: 105.4595383 | AU172: 132.3173396
A173: =A165+7 -> 120 | B173: =OFFSET(Calculations!AS$43,$A173,0)-U$3-B$10 -> 0 | C173: =OFFSET(Calculations!AT$43,$A173,0)-V$3-B$11 -> 103.3436411 | D173: =OFFSET(Calculations!AU$43,$A173,0)-W$3-B$12 -> 110.1916898 | E173: =B173*F$5+C173*F$4 -> 0 | F173: =C173*F$5-B173*F$4 -> 103.3436411 | G173: =D173 -> 110.1916898 | H173: 0 | I173: =F173*F$7+G173*F$6 -> 103.3436411 | J173: =G173*F$7-F173*F$6 -> 110.1916898 | K173: =H173*F$9+J173*F$8 -> 0 | L173: =I173 -> 103.3436411 | M173: =J173*F$9-H173*F$8 -> 110.1916898 | P173: =IF(MIN(L173:L179)+B$2+B$1>0,1,0) -> 1 | Q173: =IF(P173=1,K173*B$1/(B$1+B$2+L173),99999) -> 0 | R173: =M173*B$1/(B$1+B$2+L173) -> 19.44382389 | U173: =(2*U165+8*U175)/10 -> 0 | V173: 75.83953264 | W173: 84.99411583 | X173: -10 | Y173: 0 | Z173: 0 | AA173: =(SUM(U174:U189)-SUM(U173:U188))/16 -> 0 | AB173: =(SUM(V174:V189)-SUM(V173:V188))/16 -> 0.4106809564 | AC173: =(SUM(W174:W189)-SUM(W173:W188))/16 -> 0.9218148826 | AD173: =SUM(X173:X188)/16 -> -10 | AE173: =SUM(Y173:Y188)/16 -> 0 | AF173: =SUM(Z173:Z188)/16 -> 0 | AG173: 2 | AS173: -7 | AT173: 108.7458393 | AU173: 126.1367064
A174: 113 | B174: =OFFSET(Calculations!AS$43,$A174,0)-U$3-B$10 -> 0 | C174: =OFFSET(Calculations!AT$43,$A174,0)-V$3-B$11 -> 98.22947161 | D174: =OFFSET(Calculations!AU$43,$A174,0)-W$3-B$12 -> 102.4640253 | E174: 0 | F174: 98.22947161 | G174: 102.4640253 | H174: 0 | I174: 98.22947161 | J174: 102.4640253 | K174: 0 | L174: 98.22947161 | M174: 102.4640253 | Q174: =IF(P173=1,K174*B$1/(B$1+B$2+L174),99999) -> 0 | R174: 18.93458848 | U174: =(1*U165+9*U175)/10 -> 0 | V174: 76.24626928 | W174: 85.90766129 | X174: -10 | Y174: 0 | Z174: 0 | AA174: 0 | AB174: 0.4116670348 | AC174: 0.9238822388 | AD174: -10 | AE174: 0 | AF174: 0 | AG174: 2 | AS174: 0 | AT174: 101.7037658 | AU174: 139.3809203
A175: 112 | B175: =OFFSET(Calculations!AS$43,$A175,0)-U$3-B$10 -> -5 | C175: =OFFSET(Calculations!AT$43,$A175,0)-V$3-B$11 -> 95.72246199 | D175: =OFFSET(Calculations!AU$43,$A175,0)-W$3-B$12 -> 104.1550246 | E175: -5 | F175: 95.72246199 | G175: 104.1550246 | H175: -5 | I175: 95.72246199 | J175: 104.1550246 | K175: -5 | L175: 95.72246199 | M175: 104.1550246 | Q175: =IF(P173=1,K175*B$1/(B$1+B$2+L175),99999) -> -0.9458727892 | R175: 19.70348073 | T175: =T165+7 -> 91 | U175: =OFFSET(Calculations!AS$46,$T175,0) -> 0 | V175: =OFFSET(Calculations!AT$46,$T175,0) -> 76.65300593 | W175: =OFFSET(Calculations!AU$46,$T175,0) -> 86.82120675 | X175: =OFFSET(Calculations!AS$43,$T175,0)-OFFSET(Calculations!AS$45,$T175,0) -> -10 | Y175: =OFFSET(Calculations!AT$43,$T175,0)-OFFSET(Calculations!AT$45,$T175,0) -> 0 | Z175: =OFFSET(Calculations!AU$43,$T175,0)-OFFSET(Calculations!AU$45,$T175,0) -> 0 | AA175: 0 | AB175: 0.4126531131 | AC175: 0.925949595 | AD175: -10 | AE175: 0 | AF175: 0 | AG175: =AG174 -> 2 | AS175: 7 | AT175: 108.7458393 | AU175: 126.1367064
A176: 119 | B176: =OFFSET(Calculations!AS$43,$A176,0)-U$3-B$10 -> -5 | C176: =OFFSET(Calculations!AT$43,$A176,0)-V$3-B$11 -> 101.314391 | D176: =OFFSET(Calculations!AU$43,$A176,0)-W$3-B$12 -> 112.4454004 | E176: -5 | F176: 101.314391 | G176: 112.4454004 | H176: -5 | I176: 101.314391 | J176: 112.4454004 | K176: -5 | L176: 101.314391 | M176: 112.4454004 | Q176: =IF(P173=1,K176*B$1/(B$1+B$2+L176),99999) -> -0.8983564396 | R176: 20.20320991 | U176: =(9*U175+U185)/10 -> 0 | V176: 77.05974257 | W176: 87.7347522 | X176: -10 | Y176: 0 | Z176: 0 | AA176: 0 | AB176: 0.4136391914 | AC176: 0.9280169512 | AD176: -10 | AE176: 0 | AF176: 0 | AG176: 2 | AS176: -5 | AT176: 117.5753152 | AU176: 130.8314221
A177: 121 | B177: =OFFSET(Calculations!AS$43,$A177,0)-U$3-B$10 -> 5 | C177: =OFFSET(Calculations!AT$43,$A177,0)-V$3-B$11 -> 101.314391 | D177: =OFFSET(Calculations!AU$43,$A177,0)-W$3-B$12 -> 112.4454004 | E177: 5 | F177: 101.314391 | G177: 112.4454004 | H177: 5 | I177: 101.314391 | J177: 112.4454004 | K177: 5 | L177: 101.314391 | M177: 112.4454004 | Q177: =IF(P173=1,K177*B$1/(B$1+B$2+L177),99999) -> 0.8983564396 | R177: 20.20320991 | U177: =(8*U175+2*U185)/10 -> 0 | V177: 77.46647921 | W177: 88.64829766 | X177: -10 | Y177: 0 | Z177: 0 | AA177: 0 | AB177: 0.4146252698 | AC177: 0.9300843075 | AD177: -10 | AE177: 0 | AF177: 0 | AG177: 2 | AS177: 0 | AT177: 118.3141447 | AU177: 127.8681389
A178: 114 | B178: =OFFSET(Calculations!AS$43,$A178,0)-U$3-B$10 -> 5 | C178: =OFFSET(Calculations!AT$43,$A178,0)-V$3-B$11 -> 95.72246199 | D178: =OFFSET(Calculations!AU$43,$A178,0)-W$3-B$12 -> 104.1550246 | E178: 5 | F178: 95.72246199 | G178: 104.1550246 | H178: 5 | I178: 95.72246199 | J178: 104.1550246 | K178: 5 | L178: 95.72246199 | M178: 104.1550246 | Q178: =IF(P173=1,K178*B$1/(B$1+B$2+L178),99999) -> 0.9458727892 | R178: 19.70348073 | U178: =(7*U175+3*U185)/10 -> 0 | V178: 77.87321586 | W178: 89.56184312 | X178: -10 | Y178: 0 | Z178: 0 | AA178: 0 | AB178: 0.4156113481 | AC178: 0.9321516637 | AD178: -10 | AE178: 0 | AF178: 0 | AG178: 2 | AS178: 5 | AT178: 117.5753152 | AU178: 130.8314221
A179: 113 | B179: =OFFSET(Calculations!AS$43,$A179,0)-U$3-B$10 -> 0 | C179: =OFFSET(Calculations!AT$43,$A179,0)-V$3-B$11 -> 98.22947161 | D179: =OFFSET(Calculations!AU$43,$A179,0)-W$3-B$12 -> 102.4640253 | E179: 0 | F179: 98.22947161 | G179: 102.4640253 | H179: 0 | I179: 98.22947161 | J179: 102.4640253 | K179: 0 | L179: 98.22947161 | M179: 102.4640253 | Q179: =IF(P173=1,K179*B$1/(B$1+B$2+L179),99999) -> 0 | R179: 18.93458848 | U179: =(6*U175+4*U185)/10 -> 0 | V179: 78.2799525 | W179: 90.47538858 | X179: -10 | Y179: 0 | Z179: 0 | AA179: 0 | AB179: 0.4165974265 | AC179: 0.9342190199 | AD179: -10 | AE179: 0 | AF179: 0 | AG179: 2 | AS179: 0 | AT179: 115.8818619 | AU179: 137.6234921
U180: =(5*U175+5*U185)/10 -> 0 | V180: 78.68668914 | W180: 91.38893404 | X180: -10 | Y180: 0 | Z180: 0 | AA180: 0 | AB180: 0.4222619341 | AC180: 0.9374129418 | AD180: -10 | AE180: 0 | AF180: 0 | AG180: 2 | AS180: -7 | AT180: 117.5753152 | AU180: 130.8314221
A181: =A173+7 -> 127 | B181: =OFFSET(Calculations!AS$43,$A181,0)-U$3-B$10 -> 0 | C181: =OFFSET(Calculations!AT$43,$A181,0)-V$3-B$11 -> 110.1742848 | D181: =OFFSET(Calculations!AU$43,$A181,0)-W$3-B$12 -> 116.4501912 | E181: =B181*F$5+C181*F$4 -> 0 | F181: =C181*F$5-B181*F$4 -> 110.1742848 | G181: =D181 -> 116.4501912 | H181: 0 | I181: =F181*F$7+G181*F$6 -> 110.1742848 | J181: =G181*F$7-F181*F$6 -> 116.4501912 | K181: =H181*F$9+J181*F$8 -> 0 | L181: =I181 -> 110.1742848 | M181: =J181*F$9-H181*F$8 -> 116.4501912 | P181: =IF(MIN(L181:L187)+B$2+B$1>0,1,0) -> 1 | Q181: =IF(P181=1,K181*B$1/(B$1+B$2+L181),99999) -> 0 | R181: =M181*B$1/(B$1+B$2+L181) -> 19.3802179 | U181: =(4*U175+6*U185)/10 -> 0 | V181: 79.09342578 | W181: 92.30247949 | X181: -10 | Y181: 0 | Z181: 0 | AA181: 0 | AB181: 0.4279264418 | AC181: 0.9406068636 | AD181: -10 | AE181: 0 | AF181: 0 | AG181: 2 | AS181: 0 | AT181: 113.9464868 | AU181: 145.385858
A182: 120 | B182: =OFFSET(Calculations!AS$43,$A182,0)-U$3-B$10 -> 0 | C182: =OFFSET(Calculations!AT$43,$A182,0)-V$3-B$11 -> 103.3436411 | D182: =OFFSET(Calculations!AU$43,$A182,0)-W$3-B$12 -> 110.1916898 | E182: 0 | F182: 103.3436411 | G182: 110.1916898 | H182: 0 | I182: 103.3436411 | J182: 110.1916898 | K182: 0 | L182: 103.3436411 | M182: 110.1916898 | Q182: =IF(P181=1,K182*B$1/(B$1+B$2+L182),99999) -> 0 | R182: 19.44382389 | U182: =(3*U175+7*U185)/10 -> 0 | V182: 79.50016243 | W182: 93.21602495 | X182: -10 | Y182: 0 | Z182: 0 | AA182: 0 | AB182: 0.4335909495 | AC182: 0.9438007854 | AD182: -10 | AE182: 0 | AF182: 0 | AG182: 2 | AS182: 7 | AT182: 117.5753152 | AU182: 130.8314221
A183: 119 | B183: =OFFSET(Calculations!AS$43,$A183,0)-U$3-B$10 -> -5 | C183: =OFFSET(Calculations!AT$43,$A183,0)-V$3-B$11 -> 101.314391 | D183: =OFFSET(Calculations!AU$43,$A183,0)-W$3-B$12 -> 112.4454004 | E183: -5 | F183: 101.314391 | G183: 112.4454004 | H183: -5 | I183: 101.314391 | J183: 112.4454004 | K183: -5 | L183: 101.314391 | M183: 112.4454004 | Q183: =IF(P181=1,K183*B$1/(B$1+B$2+L183),99999) -> -0.8983564396 | R183: 20.20320991 | U183: =(2*U175+8*U185)/10 -> 0 | V183: 79.90689907 | W183: 94.12957041 | X183: -10 | Y183: 0 | Z183: 0 | AA183: 0 | AB183: 0.4392554572 | AC183: 0.9469947072 | AD183: -10 | AE183: 0 | AF183: 0 | AG183: 2 | AS183: -5 | AT183: 127.2782725 | AU183: 133.250641
A184: 126 | B184: =OFFSET(Calculations!AS$43,$A184,0)-U$3-B$10 -> -5 | C184: =OFFSET(Calculations!AT$43,$A184,0)-V$3-B$11 -> 108.7458393 | D184: =OFFSET(Calculations!AU$43,$A184,0)-W$3-B$12 -> 119.1367064 | E184: -5 | F184: 108.7458393 | G184: 119.1367064 | H184: -5 | I184: 108.7458393 | J184: 119.1367064 | K184: -5 | L184: 108.7458393 | M184: 119.1367064 | Q184: =IF(P181=1,K184*B$1/(B$1+B$2+L184),99999) -> -0.8421347696 | R184: 20.06583256 | U184: =(1*U175+9*U185)/10 -> 0 | V184: 80.31363571 | W184: 95.04311587 | X184: -10 | Y184: 0 | Z184: 0 | AA184: 0 | AB184: 0.4449199648 | AC184: 0.950188629 | AD184: -10 | AE184: 0 | AF184: 0 | AG184: 2 | AS184: 0 | AT184: 127.2782725 | AU184: 130.1839743
A185: 128 | B185: =OFFSET(Calculations!AS$43,$A185,0)-U$3-B$10 -> 5 | C185: =OFFSET(Calculations!AT$43,$A185,0)-V$3-B$11 -> 108.7458393 | D185: =OFFSET(Calculations!AU$43,$A185,0)-W$3-B$12 -> 119.1367064 | E185: 5 | F185: 108.7458393 | G185: 119.1367064 | H185: 5 | I185: 108.7458393 | J185: 119.1367064 | K185: 5 | L185: 108.7458393 | M185: 119.1367064 | Q185: =IF(P181=1,K185*B$1/(B$1+B$2+L185),99999) -> 0.8421347696 | R185: 20.06583256 | T185: =T175+7 -> 98 | U185: =OFFSET(Calculations!AS$46,$T185,0) -> 0 | V185: =OFFSET(Calculations!AT$46,$T185,0) -> 80.72037236 | W185: =OFFSET(Calculations!AU$46,$T185,0) -> 95.95666132 | X185: =OFFSET(Calculations!AS$43,$T185,0)-OFFSET(Calculations!AS$45,$T185,0) -> -10 | Y185: =OFFSET(Calculations!AT$43,$T185,0)-OFFSET(Calculations!AT$45,$T185,0) -> 0 | Z185: =OFFSET(Calculations!AU$43,$T185,0)-OFFSET(Calculations!AU$45,$T185,0) -> 0 | AA185: 0 | AB185: 0.4505844725 | AC185: 0.9533825509 | AD185: -10 | AE185: 0 | AF185: 0 | AG185: 2 | AS185: 5 | AT185: 127.2782725 | AU185: 133.250641
A186: 121 | B186: =OFFSET(Calculations!AS$43,$A186,0)-U$3-B$10 -> 5 | C186: =OFFSET(Calculations!AT$43,$A186,0)-V$3-B$11 -> 101.314391 | D186: =OFFSET(Calculations!AU$43,$A186,0)-W$3-B$12 -> 112.4454004 | E186: 5 | F186: 101.314391 | G186: 112.4454004 | H186: 5 | I186: 101.314391 | J186: 112.4454004 | K186: 5 | L186: 101.314391 | M186: 112.4454004 | Q186: =IF(P181=1,K186*B$1/(B$1+B$2+L186),99999) -> 0.8983564396 | R186: 20.20320991 | U186: =(9*U185+U195)/10 -> 0 | V186: 81.14288625 | W186: 96.90328448 | X186: -10 | Y186: 0 | Z186: 0 | AA186: 0 | AB186: 0.4552629019 | AC186: 0.9545091165 | AD186: -10 | AE186: 0 | AF186: 0 | AG186: 2 | AS186: 0 | AT186: 127.2782725 | AU186: 140.250641
A187: 120 | B187: =OFFSET(Calculations!AS$43,$A187,0)-U$3-B$10 -> 0 | C187: =OFFSET(Calculations!AT$43,$A187,0)-V$3-B$11 -> 103.3436411 | D187: =OFFSET(Calculations!AU$43,$A187,0)-W$3-B$12 -> 110.1916898 | E187: 0 | F187: 103.3436411 | G187: 110.1916898 | H187: 0 | I187: 103.3436411 | J187: 110.1916898 | K187: 0 | L187: 103.3436411 | M187: 110.1916898 | Q187: =IF(P181=1,K187*B$1/(B$1+B$2+L187),99999) -> 0 | R187: 19.44382389 | U187: =(8*U185+2*U195)/10 -> 0 | V187: 81.56540015 | W187: 97.84990764 | X187: -10 | Y187: 0 | Z187: 0 | AA187: 0 | AB187: 0.4599413312 | AC187: 0.9556356821 | AD187: -10 | AE187: 0 | AF187: 0 | AG187: 2 | AS187: -7 | AT187: 127.2782725 | AU187: 133.250641
U188: =(7*U185+3*U195)/10 -> 0 | V188: 81.98791405 | W188: 98.7965308 | X188: -10 | Y188: 0 | Z188: 0 | AA188: 0 | AB188: 0.4646197605 | AC188: 0.9567622476 | AD188: -10 | AE188: 0 | AF188: 0 | AG188: 2 | AS188: 0 | AT188: 127.2782725 | AU188: 148.250641
A189: =A181+7 -> 134 | B189: =OFFSET(Calculations!AS$43,$A189,0)-U$3-B$10 -> 0 | C189: =OFFSET(Calculations!AT$43,$A189,0)-V$3-B$11 -> 118.3141447 | D189: =OFFSET(Calculations!AU$43,$A189,0)-W$3-B$12 -> 120.8681389 | E189: =B189*F$5+C189*F$4 -> 0 | F189: =C189*F$5-B189*F$4 -> 118.3141447 | G189: =D189 -> 120.8681389 | H189: 0 | I189: =F189*F$7+G189*F$6 -> 118.3141447 | J189: =G189*F$7-F189*F$6 -> 120.8681389 | K189: =H189*F$9+J189*F$8 -> 0 | L189: =I189 -> 118.3141447 | M189: =J189*F$9-H189*F$8 -> 120.8681389 | P189: =IF(MIN(L189:L195)+B$2+B$1>0,1,0) -> 1 | Q189: =IF(P189=1,K189*B$1/(B$1+B$2+L189),99999) -> 0 | R189: =M189*B$1/(B$1+B$2+L189) -> 18.83940998 | U189: =(6*U185+4*U195)/10 -> 0 | V189: 82.41042794 | W189: 99.74315395 | X189: -10 | Y189: 0 | Z189: 0 | AA189: 0 | AB189: 0.4692981899 | AC189: 0.9578888132 | AD189: -10 | AE189: 0 | AF189: 0 | AG189: 2 | AS189: 7 | AT189: 127.2782725 | AU189: 133.250641
A190: 127 | B190: =OFFSET(Calculations!AS$43,$A190,0)-U$3-B$10 -> 0 | C190: =OFFSET(Calculations!AT$43,$A190,0)-V$3-B$11 -> 110.1742848 | D190: =OFFSET(Calculations!AU$43,$A190,0)-W$3-B$12 -> 116.4501912 | E190: 0 | F190: 110.1742848 | G190: 116.4501912 | H190: 0 | I190: 110.1742848 | J190: 116.4501912 | K190: 0 | L190: 110.1742848 | M190: 116.4501912 | Q190: =IF(P189=1,K190*B$1/(B$1+B$2+L190),99999) -> 0 | R190: 19.3802179 | U190: =(5*U185+5*U195)/10 -> 0 | V190: 82.83294184 | W190: 100.6897771 | X190: -10 | Y190: 0 | Z190: 0 | AA190: 0 | AB190: 0.4848365576 | AC190: 0.9585876108 | AD190: -10 | AE190: 0 | AF190: 0 | AG190: 2 | AS190: -5 | AT190: 137.2782725 | AU190: 133.250641
A191: 126 | B191: =OFFSET(Calculations!AS$43,$A191,0)-U$3-B$10 -> -5 | C191: =OFFSET(Calculations!AT$43,$A191,0)-V$3-B$11 -> 108.7458393 | D191: =OFFSET(Calculations!AU$43,$A191,0)-W$3-B$12 -> 119.1367064 | E191: -5 | F191: 108.7458393 | G191: 119.1367064 | H191: -5 | I191: 108.7458393 | J191: 119.1367064 | K191: -5 | L191: 108.7458393 | M191: 119.1367064 | Q191: =IF(P189=1,K191*B$1/(B$1+B$2+L191),99999) -> -0.8421347696 | R191: 20.06583256 | U191: =(4*U185+6*U195)/10 -> 0 | V191: 83.25545574 | W191: 101.6364003 | X191: -10 | Y191: 0 | Z191: 0 | AA191: 0 | AB191: 0.5003749253 | AC191: 0.9592864083 | AD191: -10 | AE191: 0 | AF191: 0 | AG191: 2 | AS191: 0 | AT191: 136.539443 | AU191: 130.2873579
A192: 133 | B192: =OFFSET(Calculations!AS$43,$A192,0)-U$3-B$10 -> -5 | C192: =OFFSET(Calculations!AT$43,$A192,0)-V$3-B$11 -> 117.5753152 | D192: =OFFSET(Calculations!AU$43,$A192,0)-W$3-B$12 -> 123.8314221 | E192: -5 | F192: 117.5753152 | G192: 123.8314221 | H192: -5 | I192: 117.5753152 | J192: 123.8314221 | K192: -5 | L192: 117.5753152 | M192: 123.8314221 | Q192: =IF(P189=1,K192*B$1/(B$1+B$2+L192),99999) -> -0.783850699 | R192: 19.41306935 | U192: =(3*U185+7*U195)/10 -> 0 | V192: 83.67796963 | W192: 102.5830234 | X192: -10 | Y192: 0 | Z192: 0 | AA192: 0 | AB192: 0.515913293 | AC192: 0.9599852059 | AD192: -10 | AE192: 0 | AF192: 0 | AG192: 2 | AS192: 5 | AT192: 137.2782725 | AU192: 133.250641
A193: 135 | B193: =OFFSET(Calculations!AS$43,$A193,0)-U$3-B$10 -> 5 | C193: =OFFSET(Calculations!AT$43,$A193,0)-V$3-B$11 -> 117.5753152 | D193: =OFFSET(Calculations!AU$43,$A193,0)-W$3-B$12 -> 123.8314221 | E193: 5 | F193: 117.5753152 | G193: 123.8314221 | H193: 5 | I193: 117.5753152 | J193: 123.8314221 | K193: 5 | L193: 117.5753152 | M193: 123.8314221 | Q193: =IF(P189=1,K193*B$1/(B$1+B$2+L193),99999) -> 0.783850699 | R193: 19.41306935 | U193: =(2*U185+8*U195)/10 -> 0 | V193: 84.10048353 | W193: 103.5296466 | X193: -10 | Y193: 0 | Z193: 0 | AA193: 0 | AB193: 0.5314516607 | AC193: 0.9606840034 | AD193: -10 | AE193: 0 | AF193: 0 | AG193: 2 | AS193: 0 | AT193: 138.9717257 | AU193: 140.0427111
A194: 128 | B194: =OFFSET(Calculations!AS$43,$A194,0)-U$3-B$10 -> 5 | C194: =OFFSET(Calculations!AT$43,$A194,0)-V$3-B$11 -> 108.7458393 | D194: =OFFSET(Calculations!AU$43,$A194,0)-W$3-B$12 -> 119.1367064 | E194: 5 | F194: 108.7458393 | G194: 119.1367064 | H194: 5 | I194: 108.7458393 | J194: 119.1367064 | K194: 5 | L194: 108.7458393 | M194: 119.1367064 | Q194: =IF(P189=1,K194*B$1/(B$1+B$2+L194),99999) -> 0.8421347696 | R194: 20.06583256 | U194: =(1*U185+9*U195)/10 -> 0 | V194: 84.52299743 | W194: 104.4762697 | X194: -10 | Y194: 0 | Z194: 0 | AA194: 0 | AB194: 0.5469900284 | AC194: 0.9613828009 | AD194: -10 | AE194: 0 | AF194: 0 | AG194: 2 | AS194: -7 | AT194: 137.2782725 | AU194: 133.250641
A195: 127 | B195: =OFFSET(Calculations!AS$43,$A195,0)-U$3-B$10 -> 0 | C195: =OFFSET(Calculations!AT$43,$A195,0)-V$3-B$11 -> 110.1742848 | D195: =OFFSET(Calculations!AU$43,$A195,0)-W$3-B$12 -> 116.4501912 | E195: 0 | F195: 110.1742848 | G195: 116.4501912 | H195: 0 | I195: 110.1742848 | J195: 116.4501912 | K195: 0 | L195: 110.1742848 | M195: 116.4501912 | Q195: =IF(P189=1,K195*B$1/(B$1+B$2+L195),99999) -> 0 | R195: 19.3802179 | T195: =T185+7 -> 105 | U195: =OFFSET(Calculations!AS$46,$T195,0) -> 0 | V195: =OFFSET(Calculations!AT$46,$T195,0) -> 84.94551132 | W195: =OFFSET(Calculations!AU$46,$T195,0) -> 105.4228929 | X195: =OFFSET(Calculations!AS$43,$T195,0)-OFFSET(Calculations!AS$45,$T195,0) -> -10 | Y195: =OFFSET(Calculations!AT$43,$T195,0)-OFFSET(Calculations!AT$45,$T195,0) -> 0 | Z195: =OFFSET(Calculations!AU$43,$T195,0)-OFFSET(Calculations!AU$45,$T195,0) -> 0 | AA195: 0 | AB195: 0.5625283961 | AC195: 0.9620815985 | AD195: -10 | AE195: 0 | AF195: 0 | AG195: 2 | AS195: 0 | AT195: 140.9071009 | AU195: 147.8050769
U196: =(9*U195+U205)/10 -> 0 | V196: 85.44288009 | W196: 106.3875411 | X196: -10 | Y196: 0 | Z196: 0 | AA196: 0 | AB196: 0.5733883345 | AC196: 0.9616538304 | AD196: -10 | AE196: 0 | AF196: 0 | AG196: 2 | AS196: 7 | AT196: 137.2782725 | AU196: 133.250641
A197: =A189+7 -> 141 | B197: =OFFSET(Calculations!AS$43,$A197,0)-U$3-B$10 -> 0 | C197: =OFFSET(Calculations!AT$43,$A197,0)-V$3-B$11 -> 127.2782725 | D197: =OFFSET(Calculations!AU$43,$A197,0)-W$3-B$12 -> 123.1839743 | E197: =B197*F$5+C197*F$4 -> 0 | F197: =C197*F$5-B197*F$4 -> 127.2782725 | G197: =D197 -> 123.1839743 | H197: 0 | I197: =F197*F$7+G197*F$6 -> 127.2782725 | J197: =G197*F$7-F197*F$6 -> 123.1839743 | K197: =H197*F$9+J197*F$8 -> 0 | L197: =I197 -> 127.2782725 | M197: =J197*F$9-H197*F$8 -> 123.1839743 | P197: =IF(MIN(L197:L203)+B$2+B$1>0,1,0) -> 1 | Q197: =IF(P197=1,K197*B$1/(B$1+B$2+L197),99999) -> 0 | R197: =M197*B$1/(B$1+B$2+L197) -> 17.94660905 | U197: =(8*U195+2*U205)/10 -> 0 | V197: 85.94024885 | W197: 107.3521893 | X197: -10 | Y197: 0 | Z197: 0 | AA197: 0 | AB197: 0.5842482728 | AC197: 0.9612260624 | AD197: -10 | AE197: 0 | AF197: 0 | AG197: 2 | AS197: -5 | AT197: 146.9812297 | AU197: 130.8314221
A198: 134 | B198: =OFFSET(Calculations!AS$43,$A198,0)-U$3-B$10 -> 0 | C198: =OFFSET(Calculations!AT$43,$A198,0)-V$3-B$11 -> 118.3141447 | D198: =OFFSET(Calculations!AU$43,$A198,0)-W$3-B$12 -> 120.8681389 | E198: 0 | F198: 118.3141447 | G198: 120.8681389 | H198: 0 | I198: 118.3141447 | J198: 120.8681389 | K198: 0 | L198: 118.3141447 | M198: 120.8681389 | Q198: =IF(P197=1,K198*B$1/(B$1+B$2+L198),99999) -> 0 | R198: 18.83940998 | U198: =(7*U195+3*U205)/10 -> 0 | V198: 86.43761762 | W198: 108.3168375 | X198: -10 | Y198: 0 | Z198: 0 | AA198: 0 | AB198: 0.5951082112 | AC198: 0.9607982943 | AD198: -10 | AE198: 0 | AF198: 0 | AG198: 2 | AS198: 0 | AT198: 145.5527843 | AU198: 128.1449068
A199: 133 | B199: =OFFSET(Calculations!AS$43,$A199,0)-U$3-B$10 -> -5 | C199: =OFFSET(Calculations!AT$43,$A199,0)-V$3-B$11 -> 117.5753152 | D199: =OFFSET(Calculations!AU$43,$A199,0)-W$3-B$12 -> 123.8314221 | E199: -5 | F199: 117.5753152 | G199: 123.8314221 | H199: -5 | I199: 117.5753152 | J199: 123.8314221 | K199: -5 | L199: 117.5753152 | M199: 123.8314221 | Q199: =IF(P197=1,K199*B$1/(B$1+B$2+L199),99999) -> -0.783850699 | R199: 19.41306935 | U199: =(6*U195+4*U205)/10 -> 0 | V199: 86.93498639 | W199: 109.2814857 | X199: -10 | Y199: 0 | Z199: 0 | AA199: 0 | AB199: 0.6059681496 | AC199: 0.9603705263 | AD199: -10 | AE199: 0 | AF199: 0 | AG199: 2 | AS199: 5 | AT199: 146.9812297 | AU199: 130.8314221
A200: 140 | B200: =OFFSET(Calculations!AS$43,$A200,0)-U$3-B$10 -> -5 | C200: =OFFSET(Calculations!AT$43,$A200,0)-V$3-B$11 -> 127.2782725 | D200: =OFFSET(Calculations!AU$43,$A200,0)-W$3-B$12 -> 126.250641 | E200: -5 | F200: 127.2782725 | G200: 126.250641 | H200: -5 | I200: 127.2782725 | J200: 126.250641 | K200: -5 | L200: 127.2782725 | M200: 126.250641 | Q200: =IF(P197=1,K200*B$1/(B$1+B$2+L200),99999) -> -0.7284473952 | R200: 18.39339012 | U200: =(5*U195+5*U205)/10 -> 0 | V200: 87.43235515 | W200: 110.2461339 | X200: -10 | Y200: 0 | Z200: 0 | AA200: 0 | AB200: 0.6300642365 | AC200: 0.9480170473 | AD200: -10 | AE200: 0 | AF200: 0 | AG200: 2 | AS200: 0 | AT200: 150.2675307 | AU200: 137.0120552
A201: 142 | B201: =OFFSET(Calculations!AS$43,$A201,0)-U$3-B$10 -> 5 | C201: =OFFSET(Calculations!AT$43,$A201,0)-V$3-B$11 -> 127.2782725 | D201: =OFFSET(Calculations!AU$43,$A201,0)-W$3-B$12 -> 126.250641 | E201: 5 | F201: 127.2782725 | G201: 126.250641 | H201: 5 | I201: 127.2782725 | J201: 126.250641 | K201: 5 | L201: 127.2782725 | M201: 126.250641 | Q201: =IF(P197=1,K201*B$1/(B$1+B$2+L201),99999) -> 0.7284473952 | R201: 18.39339012 | U201: =(4*U195+6*U205)/10 -> 0 | V201: 87.92972392 | W201: 111.2107821 | X201: -10 | Y201: 0 | Z201: 0 | AA201: 0 | AB201: 0.6541603233 | AC201: 0.9356635684 | AD201: -10 | AE201: 0 | AF201: 0 | AG201: 2 | AS201: -7 | AT201: 146.9812297 | AU201: 130.8314221
A202: 135 | B202: =OFFSET(Calculations!AS$43,$A202,0)-U$3-B$10 -> 5 | C202: =OFFSET(Calculations!AT$43,$A202,0)-V$3-B$11 -> 117.5753152 | D202: =OFFSET(Calculations!AU$43,$A202,0)-W$3-B$12 -> 123.8314221 | E202: 5 | F202: 117.5753152 | G202: 123.8314221 | H202: 5 | I202: 117.5753152 | J202: 123.8314221 | K202: 5 | L202: 117.5753152 | M202: 123.8314221 | Q202: =IF(P197=1,K202*B$1/(B$1+B$2+L202),99999) -> 0.783850699 | R202: 19.41306935 | U202: =(3*U195+7*U205)/10 -> 0 | V202: 88.42709268 | W202: 112.1754303 | X202: -10 | Y202: 0 | Z202: 0 | AA202: 0 | AB202: 0.6782564102 | AC202: 0.9233100894 | AD202: -10 | AE202: 0 | AF202: 0 | AG202: 2 | AS202: 0 | AT202: 154.0233032 | AU202: 144.075636
A203: 134 | B203: =OFFSET(Calculations!AS$43,$A203,0)-U$3-B$10 -> 0 | C203: =OFFSET(Calculations!AT$43,$A203,0)-V$3-B$11 -> 118.3141447 | D203: =OFFSET(Calculations!AU$43,$A203,0)-W$3-B$12 -> 120.8681389 | E203: 0 | F203: 118.3141447 | G203: 120.8681389 | H203: 0 | I203: 118.3141447 | J203: 120.8681389 | K203: 0 | L203: 118.3141447 | M203: 120.8681389 | Q203: =IF(P197=1,K203*B$1/(B$1+B$2+L203),99999) -> 0 | R203: 18.83940998 | U203: =(2*U195+8*U205)/10 -> 0 | V203: 88.92446145 | W203: 113.1400786 | X203: -10 | Y203: 0 | Z203: 0 | AA203: 0 | AB203: 0.7023524971 | AC203: 0.9109566105 | AD203: -10 | AE203: 0 | AF203: 0 | AG203: 2 | AS203: 7 | AT203: 146.9812297 | AU203: 130.8314221
U204: =(1*U195+9*U205)/10 -> 0 | V204: 89.42183021 | W204: 114.1047268 | X204: -10 | Y204: 0 | Z204: 0 | AA204: 0 | AB204: 0.726448584 | AC204: 0.8986031315 | AD204: -10 | AE204: 0 | AF204: 0 | AG204: 2 | AS204: -5 | AT204: 155.8107057 | AU204: 126.1367064
A205: =A197+7 -> 148 | B205: =OFFSET(Calculations!AS$43,$A205,0)-U$3-B$10 -> 0 | C205: =OFFSET(Calculations!AT$43,$A205,0)-V$3-B$11 -> 136.539443 | D205: =OFFSET(Calculations!AU$43,$A205,0)-W$3-B$12 -> 123.2873579 | E205: =B205*F$5+C205*F$4 -> 0 | F205: =C205*F$5-B205*F$4 -> 136.539443 | G205: =D205 -> 123.2873579 | H205: 0 | I205: =F205*F$7+G205*F$6 -> 136.539443 | J205: =G205*F$7-F205*F$6 -> 123.2873579 | K205: =H205*F$9+J205*F$8 -> 0 | L205: =I205 -> 136.539443 | M205: =J205*F$9-H205*F$8 -> 123.2873579 | P205: =IF(MIN(L205:L211)+B$2+B$1>0,1,0) -> 1 | Q205: =IF(P205=1,K205*B$1/(B$1+B$2+L205),99999) -> 0 | R205: =M205*B$1/(B$1+B$2+L205) -> 16.82650832 | T205: =T195+7 -> 112 | U205: =OFFSET(Calculations!AS$46,$T205,0) -> 0 | V205: =OFFSET(Calculations!AT$46,$T205,0) -> 89.91919898 | W205: =OFFSET(Calculations!AU$46,$T205,0) -> 115.069375 | X205: =OFFSET(Calculations!AS$43,$T205,0)-OFFSET(Calculations!AS$45,$T205,0) -> -10 | Y205: =OFFSET(Calculations!AT$43,$T205,0)-OFFSET(Calculations!AT$45,$T205,0) -> 0 | Z205: =OFFSET(Calculations!AU$43,$T205,0)-OFFSET(Calculations!AU$45,$T205,0) -> 0 | AA205: 0 | AB205: 0.7505446709 | AC205: 0.8862496525 | AD205: -10 | AE205: 0 | AF205: 0 | AG205: 2 | AS205: 0 | AT205: 153.7814556 | AU205: 123.8829959
A206: 141 | B206: =OFFSET(Calculations!AS$43,$A206,0)-U$3-B$10 -> 0 | C206: =OFFSET(Calculations!AT$43,$A206,0)-V$3-B$11 -> 127.2782725 | D206: =OFFSET(Calculations!AU$43,$A206,0)-W$3-B$12 -> 123.1839743 | E206: 0 | F206: 127.2782725 | G206: 123.1839743 | H206: 0 | I206: 127.2782725 | J206: 123.1839743 | K206: 0 | L206: 127.2782725 | M206: 123.1839743 | Q206: =IF(P205=1,K206*B$1/(B$1+B$2+L206),99999) -> 0 | R206: 17.94660905 | U206: =(9*U205+U215)/10 -> 0 | V206: 90.59032676 | W206: 116.0271789 | X206: -10 | Y206: 0 | Z206: 0 | AA206: 0 | AB206: 0.7637808194 | AC206: 0.8743239416 | AD206: -10 | AE206: 0 | AF206: 0 | AG206: 2 | AS206: 5 | AT206: 155.8107057 | AU206: 126.1367064
A207: 140 | B207: =OFFSET(Calculations!AS$43,$A207,0)-U$3-B$10 -> -5 | C207: =OFFSET(Calculations!AT$43,$A207,0)-V$3-B$11 -> 127.2782725 | D207: =OFFSET(Calculations!AU$43,$A207,0)-W$3-B$12 -> 126.250641 | E207: -5 | F207: 127.2782725 | G207: 126.250641 | H207: -5 | I207: 127.2782725 | J207: 126.250641 | K207: -5 | L207: 127.2782725 | M207: 126.250641 | Q207: =IF(P205=1,K207*B$1/(B$1+B$2+L207),99999) -> -0.7284473952 | R207: 18.39339012 | U207: =(8*U205+2*U215)/10 -> 0 | V207: 91.26145454 | W207: 116.9849828 | X207: -10 | Y207: 0 | Z207: 0 | AA207: 0 | AB207: 0.7770169679 | AC207: 0.8623982307 | AD207: -10 | AE207: 0 | AF207: 0 | AG207: 2 | AS207: 0 | AT207: 160.4946199 | AU207: 131.3387202
A208: 147 | B208: =OFFSET(Calculations!AS$43,$A208,0)-U$3-B$10 -> -5 | C208: =OFFSET(Calculations!AT$43,$A208,0)-V$3-B$11 -> 137.2782725 | D208: =OFFSET(Calculations!AU$43,$A208,0)-W$3-B$12 -> 126.250641 | E208: -5 | F208: 137.2782725 | G208: 126.250641 | H208: -5 | I208: 137.2782725 | J208: 126.250641 | K208: -5 | L208: 137.2782725 | M208: 126.250641 | Q208: =IF(P205=1,K208*B$1/(B$1+B$2+L208),99999) -> -0.6789867801 | R208: 17.14450325 | U208: =(7*U205+3*U215)/10 -> 0 | V208: 91.93258232 | W208: 117.9427867 | X208: -10 | Y208: 0 | Z208: 0 | AA208: 0 | AB208: 0.7902531164 | AC208: 0.8504725198 | AD208: -10 | AE208: 0 | AF208: 0 | AG208: 2 | AS208: -7 | AT208: 155.8107057 | AU208: 126.1367064
A209: 149 | B209: =OFFSET(Calculations!AS$43,$A209,0)-U$3-B$10 -> 5 | C209: =OFFSET(Calculations!AT$43,$A209,0)-V$3-B$11 -> 137.2782725 | D209: =OFFSET(Calculations!AU$43,$A209,0)-W$3-B$12 -> 126.250641 | E209: 5 | F209: 137.2782725 | G209: 126.250641 | H209: 5 | I209: 137.2782725 | J209: 126.250641 | K209: 5 | L209: 137.2782725 | M209: 126.250641 | Q209: =IF(P205=1,K209*B$1/(B$1+B$2+L209),99999) -> 0.6789867801 | R209: 17.14450325 | U209: =(6*U205+4*U215)/10 -> 0 | V209: 92.6037101 | W209: 118.9005906 | X209: -10 | Y209: 0 | Z209: 0 | AA209: 0 | AB209: 0.8034892649 | AC209: 0.8385468089 | AD209: -10 | AE209: 0 | AF209: 0 | AG209: 2 | AS209: 0 | AT209: 165.8476648 | AU209: 137.2838788
A210: 142 | B210: =OFFSET(Calculations!AS$43,$A210,0)-U$3-B$10 -> 5 | C210: =OFFSET(Calculations!AT$43,$A210,0)-V$3-B$11 -> 127.2782725 | D210: =OFFSET(Calculations!AU$43,$A210,0)-W$3-B$12 -> 126.250641 | E210: 5 | F210: 127.2782725 | G210: 126.250641 | H210: 5 | I210: 127.2782725 | J210: 126.250641 | K210: 5 | L210: 127.2782725 | M210: 126.250641 | Q210: =IF(P205=1,K210*B$1/(B$1+B$2+L210),99999) -> 0.7284473952 | R210: 18.39339012 | U210: =(5*U205+5*U215)/10 -> 0 | V210: 93.27483788 | W210: 119.8583946 | X210: -10 | Y210: 0 | Z210: 0 | AA210: 0 | AB210: 0.8266833012 | AC210: 0.8118475176 | AD210: -10 | AE210: 0 | AF210: 0 | AG210: 2 | AS210: 7 | AT210: 155.8107057 | AU210: 126.1367064
A211: 141 | B211: =OFFSET(Calculations!AS$43,$A211,0)-U$3-B$10 -> 0 | C211: =OFFSET(Calculations!AT$43,$A211,0)-V$3-B$11 -> 127.2782725 | D211: =OFFSET(Calculations!AU$43,$A211,0)-W$3-B$12 -> 123.1839743 | E211: 0 | F211: 127.2782725 | G211: 123.1839743 | H211: 0 | I211: 127.2782725 | J211: 123.1839743 | K211: 0 | L211: 127.2782725 | M211: 123.1839743 | Q211: =IF(P205=1,K211*B$1/(B$1+B$2+L211),99999) -> 0 | R211: 17.94660905 | U211: =(4*U205+6*U215)/10 -> 0 | V211: 93.94596566 | W211: 120.8161985 | X211: -10 | Y211: 0 | Z211: 0 | AA211: 0 | AB211: 0.8498773374 | AC211: 0.7851482262 | AD211: -10 | AE211: 0 | AF211: 0 | AG211: 2 | AS211: -5 | AT211: 163.2421539 | AU211: 119.4454004
U212: =(3*U205+7*U215)/10 -> 0 | V212: 94.61709344 | W212: 121.7740024 | X212: -10 | Y212: 0 | Z212: 0 | AA212: 0 | AB212: 0.8730713737 | AC212: 0.7584489349 | AD212: -10 | AE212: 0 | AF212: 0 | AG212: 2 | AS212: 0 | AT212: 160.9599121 | AU212: 117.4614779
A213: =A205+7 -> 155 | B213: =OFFSET(Calculations!AS$43,$A213,0)-U$3-B$10 -> 0 | C213: =OFFSET(Calculations!AT$43,$A213,0)-V$3-B$11 -> 145.5527843 | D213: =OFFSET(Calculations!AU$43,$A213,0)-W$3-B$12 -> 121.1449068 | E213: =B213*F$5+C213*F$4 -> 0 | F213: =C213*F$5-B213*F$4 -> 145.5527843 | G213: =D213 -> 121.1449068 | H213: 0 | I213: =F213*F$7+G213*F$6 -> 145.5527843 | J213: =G213*F$7-F213*F$6 -> 121.1449068 | K213: =H213*F$9+J213*F$8 -> 0 | L213: =I213 -> 145.5527843 | M213: =J213*F$9-H213*F$8 -> 121.1449068 | P213: =IF(MIN(L213:L219)+B$2+B$1>0,1,0) -> 1 | Q213: =IF(P213=1,K213*B$1/(B$1+B$2+L213),99999) -> 0 | R213: =M213*B$1/(B$1+B$2+L213) -> 15.57605123 | U213: =(2*U205+8*U215)/10 -> 0 | V213: 95.28822122 | W213: 122.7318063 | X213: -10 | Y213: 0 | Z213: 0 | AA213: 0 | AB213: 0.8962654099 | AC213: 0.7317496435 | AD213: -10 | AE213: 0 | AF213: 0 | AG213: 2 | AS213: 5 | AT213: 163.2421539 | AU213: 119.4454004
A214: 148 | B214: =OFFSET(Calculations!AS$43,$A214,0)-U$3-B$10 -> 0 | C214: =OFFSET(Calculations!AT$43,$A214,0)-V$3-B$11 -> 136.539443 | D214: =OFFSET(Calculations!AU$43,$A214,0)-W$3-B$12 -> 123.2873579 | E214: 0 | F214: 136.539443 | G214: 123.2873579 | H214: 0 | I214: 136.539443 | J214: 123.2873579 | K214: 0 | L214: 136.539443 | M214: 123.2873579 | Q214: =IF(P213=1,K214*B$1/(B$1+B$2+L214),99999) -> 0 | R214: 16.82650832 | U214: =(1*U205+9*U215)/10 -> 0 | V214: 95.959349 | W214: 123.6896102 | X214: -10 | Y214: 0 | Z214: 0 | AA214: 0 | AB214: 0.9194594462 | AC214: 0.7050503521 | AD214: -10 | AE214: 0 | AF214: 0 | AG214: 2 | AS214: 0 | AT214: 168.525121 | AU214: 124.0378136
... 1885 more rows
